Department family,Entity,Date,Expense Type,Expense area,Supplier,Transaction number,AP Amount (�)
Department of Health,NHS Sheffield CCG,31/03/2019,C&M-PMS Contract Value,PRC DELEGATED CO-COMMISSIONING,ABBEY LANE SURGERY,26357929,"23,647.03 "
Department of Health,NHS Sheffield CCG,31/03/2019,C&M-PMS DES Extended Hours Access,PRC DELEGATED CO-COMMISSIONING,ABBEY LANE SURGERY,26357929,"1,487.23 "
Department of Health,NHS Sheffield CCG,31/03/2019,C&M-PMS PCO Locum Adop/Pat/Mat,PRC DELEGATED CO-COMMISSIONING,ABBEY LANE SURGERY,26357929,"3,401.76 "
Department of Health,NHS Sheffield CCG,31/03/2019,C&M-PMS PCO Other,PRC DELEGATED CO-COMMISSIONING,ABBEY LANE SURGERY,26357929,"8,371.00 "
Department of Health,NHS Sheffield CCG,31/03/2019,C&M-PMS Prem Notional Rent,PRC DELEGATED CO-COMMISSIONING,ABBEY LANE SURGERY,26357929,"2,122.92 "
Department of Health,NHS Sheffield CCG,31/03/2019,C&M-PMS QOF Aspiration,PRC DELEGATED CO-COMMISSIONING,ABBEY LANE SURGERY,26357929,"2,572.92 "
Department of Health,NHS Sheffield CCG,31/03/2019,Cont Care-Physical Disab (65+),CHC ADULT FULLY FUNDED,ABBEYCARE NURSING,26313812,"51,285.78 "
Department of Health,NHS Sheffield CCG,31/03/2019,C&M-PMS Contract Value,PRC DELEGATED CO-COMMISSIONING,AVENUE MEDICAL CENTRE SHEFFIELD,26357927,"54,712.53 "
Department of Health,NHS Sheffield CCG,31/03/2019,C&M-PMS DES Extended Hours Access,PRC DELEGATED CO-COMMISSIONING,AVENUE MEDICAL CENTRE SHEFFIELD,26357927,"3,386.28 "
Department of Health,NHS Sheffield CCG,31/03/2019,C&M-PMS DES Learn Dsblty Hlth Chk,PRC DELEGATED CO-COMMISSIONING,AVENUE MEDICAL CENTRE SHEFFIELD,26357927,420.00 
Department of Health,NHS Sheffield CCG,31/03/2019,C&M-PMS Out of Hours Opt Outs,PRC DELEGATED CO-COMMISSIONING,AVENUE MEDICAL CENTRE SHEFFIELD,26357927,3.86 
Department of Health,NHS Sheffield CCG,31/03/2019,C&M-PMS Prem Notional Rent,PRC DELEGATED CO-COMMISSIONING,AVENUE MEDICAL CENTRE SHEFFIELD,26357927,"5,546.67 "
Department of Health,NHS Sheffield CCG,31/03/2019,C&M-PMS QOF Aspiration,PRC DELEGATED CO-COMMISSIONING,AVENUE MEDICAL CENTRE SHEFFIELD,26357927,"5,705.45 "
Department of Health,NHS Sheffield CCG,31/03/2019,Other Gen Supplies & Srv,CLINICAL LEADS,BARNSLEY HOSPITAL NHS FOUNDATION TRUST,26109169,"67,928.00 "
Department of Health,NHS Sheffield CCG,31/03/2019,Hcare Srv Rec Fdtn Trust-Contract Baseline,ACUTE COMMISSIONING,BARNSLEY HOSPITAL NHS FOUNDATION TRUST,26214220,"73,344.00 "
Department of Health,NHS Sheffield CCG,31/03/2019,Other Gen Supplies & Srv,BEREAVEMENT SERVICE,BARNSLEY HOSPITAL NHS FOUNDATION TRUST,26274391,"178,000.00 "
Department of Health,NHS Sheffield CCG,31/03/2019,C&M-PMS Contract Value,PRC DELEGATED CO-COMMISSIONING,BARNSLEY ROAD SURGERY,26357931,"21,904.36 "
Department of Health,NHS Sheffield CCG,31/03/2019,C&M-PMS DES Extended Hours Access,PRC DELEGATED CO-COMMISSIONING,BARNSLEY ROAD SURGERY,26357931,"1,260.18 "
Department of Health,NHS Sheffield CCG,31/03/2019,C&M-PMS Prem Notional Rent,PRC DELEGATED CO-COMMISSIONING,BARNSLEY ROAD SURGERY,26357931,"2,652.17 "
Department of Health,NHS Sheffield CCG,31/03/2019,C&M-PMS QOF Aspiration,PRC DELEGATED CO-COMMISSIONING,BARNSLEY ROAD SURGERY,26357931,"2,364.70 "
Department of Health,NHS Sheffield CCG,31/03/2019,C&M-GMS DES Extended Hours Access,PRC DELEGATED CO-COMMISSIONING,BASLOW ROAD & SHOREHAM STREET SURGERIES,26592283,"6,006.38 "
Department of Health,NHS Sheffield CCG,31/03/2019,C&M-GMS Global Sum,PRC DELEGATED CO-COMMISSIONING,BASLOW ROAD & SHOREHAM STREET SURGERIES,26592283,"96,905.83 "
Department of Health,NHS Sheffield CCG,31/03/2019,C&M-GMS MPIG Correction Factor,PRC DELEGATED CO-COMMISSIONING,BASLOW ROAD & SHOREHAM STREET SURGERIES,26592283,292.43 
Department of Health,NHS Sheffield CCG,31/03/2019,C&M-GMS PCO Seniority,PRC DELEGATED CO-COMMISSIONING,BASLOW ROAD & SHOREHAM STREET SURGERIES,26592283,"1,978.08 "
Department of Health,NHS Sheffield CCG,31/03/2019,C&M-GMS Prem Notional Rent,PRC DELEGATED CO-COMMISSIONING,BASLOW ROAD & SHOREHAM STREET SURGERIES,26592283,"8,511.25 "
Department of Health,NHS Sheffield CCG,31/03/2019,C&M-GMS Prem Water Rates,PRC DELEGATED CO-COMMISSIONING,BASLOW ROAD & SHOREHAM STREET SURGERIES,26592283,393.67 
Department of Health,NHS Sheffield CCG,31/03/2019,C&M-GMS QOF Aspiration,PRC DELEGATED CO-COMMISSIONING,BASLOW ROAD & SHOREHAM STREET SURGERIES,26592283,"10,715.96 "
Department of Health,NHS Sheffield CCG,31/03/2019,Cont Care-Physical Disab (65+),CHC ADULT FULLY FUNDED,BC SHEFFIELD LTD,26288571,"36,915.01 "
Department of Health,NHS Sheffield CCG,31/03/2019,C&M-PMS Contract Value,PRC DELEGATED CO-COMMISSIONING,BIRLEY HEALTH CENTRE,26357933,"63,435.34 "
Department of Health,NHS Sheffield CCG,31/03/2019,C&M-PMS DES Extended Hours Access,PRC DELEGATED CO-COMMISSIONING,BIRLEY HEALTH CENTRE,26357933,"4,039.40 "
Department of Health,NHS Sheffield CCG,31/03/2019,C&M-PMS Out of Hours Opt Outs,PRC DELEGATED CO-COMMISSIONING,BIRLEY HEALTH CENTRE,26357933,15.55 
Department of Health,NHS Sheffield CCG,31/03/2019,C&M-PMS PCO Seniority,PRC DELEGATED CO-COMMISSIONING,BIRLEY HEALTH CENTRE,26357933,"3,482.48 "
Department of Health,NHS Sheffield CCG,31/03/2019,C&M-PMS Prem Notional Rent,PRC DELEGATED CO-COMMISSIONING,BIRLEY HEALTH CENTRE,26357933,"7,600.58 "
Department of Health,NHS Sheffield CCG,31/03/2019,C&M-PMS QOF Aspiration,PRC DELEGATED CO-COMMISSIONING,BIRLEY HEALTH CENTRE,26357933,"7,642.20 "
Department of Health,NHS Sheffield CCG,31/03/2019,Clinical&Medical-Independent Sector,ACUTE COMMISSIONING,BMI HEALTHCARE LTD,26313556,"(39,109.22)"
Department of Health,NHS Sheffield CCG,31/03/2019,Clinical&Medical-Independent Sector,ACUTE COMMISSIONING,BMI HEALTHCARE LTD,26391931,"84,881.31 "
Department of Health,NHS Sheffield CCG,31/03/2019,C&M-GMS Cost of Drugs -Prescribing,LOCAL ENHANCED SERVICES,BROOMHILL SURGERY,26592290,"3,274.49 "
Department of Health,NHS Sheffield CCG,31/03/2019,C&M-GMS DES Extended Hours Access,PRC DELEGATED CO-COMMISSIONING,BROOMHILL SURGERY,26592290,"4,575.20 "
Department of Health,NHS Sheffield CCG,31/03/2019,C&M-GMS Global Sum,PRC DELEGATED CO-COMMISSIONING,BROOMHILL SURGERY,26592290,"63,623.52 "
Department of Health,NHS Sheffield CCG,31/03/2019,C&M-GMS MPIG Correction Factor,PRC DELEGATED CO-COMMISSIONING,BROOMHILL SURGERY,26592290,502.00 
Department of Health,NHS Sheffield CCG,31/03/2019,C&M-GMS PCO Seniority,PRC DELEGATED CO-COMMISSIONING,BROOMHILL SURGERY,26592290,"3,894.17 "
Department of Health,NHS Sheffield CCG,31/03/2019,C&M-GMS Prem Cost Rent,PRC DELEGATED CO-COMMISSIONING,BROOMHILL SURGERY,26592290,"3,380.00 "
Department of Health,NHS Sheffield CCG,31/03/2019,C&M-GMS Prem Notional Rent,PRC DELEGATED CO-COMMISSIONING,BROOMHILL SURGERY,26592290,"2,612.50 "
Department of Health,NHS Sheffield CCG,31/03/2019,C&M-GMS Prof Fees Prescribing,PRC DELEGATED CO-COMMISSIONING,BROOMHILL SURGERY,26592290,136.21 
Department of Health,NHS Sheffield CCG,31/03/2019,C&M-GMS QOF Aspiration,PRC DELEGATED CO-COMMISSIONING,BROOMHILL SURGERY,26592290,"6,274.17 "
Department of Health,NHS Sheffield CCG,31/03/2019,C&M-GMS IT Comm Servs -GP Practices,PRIMARY CARE IT,BT GLOBAL SERVICES,26505980,"24,626.34 "
Department of Health,NHS Sheffield CCG,31/03/2019,Computer Software/License,CORPORATE COSTS & SERVICES,BT GLOBAL SERVICES,26505980,"2,327.16 "
Department of Health,NHS Sheffield CCG,31/03/2019,C&M-GMS Cost of Drugs -Prescribing,LOCAL ENHANCED SERVICES,BUCHANAN ROAD SURGERY,26592286,66.19 
Department of Health,NHS Sheffield CCG,31/03/2019,C&M-GMS Global Sum,PRC DELEGATED CO-COMMISSIONING,BUCHANAN ROAD SURGERY,26592286,"35,425.64 "
Department of Health,NHS Sheffield CCG,31/03/2019,C&M-GMS MPIG Correction Factor,PRC DELEGATED CO-COMMISSIONING,BUCHANAN ROAD SURGERY,26592286,"1,310.51 "
Department of Health,NHS Sheffield CCG,31/03/2019,C&M-GMS PCO Seniority,PRC DELEGATED CO-COMMISSIONING,BUCHANAN ROAD SURGERY,26592286,572.54 
Department of Health,NHS Sheffield CCG,31/03/2019,C&M-GMS Prem Notional Rent,PRC DELEGATED CO-COMMISSIONING,BUCHANAN ROAD SURGERY,26592286,"2,595.83 "
Department of Health,NHS Sheffield CCG,31/03/2019,C&M-GMS Prof Fees Prescribing,PRC DELEGATED CO-COMMISSIONING,BUCHANAN ROAD SURGERY,26592286,25.70 
Department of Health,NHS Sheffield CCG,31/03/2019,C&M-GMS QOF Aspiration,PRC DELEGATED CO-COMMISSIONING,BUCHANAN ROAD SURGERY,26592286,"4,144.11 "
Department of Health,NHS Sheffield CCG,31/03/2019,C&M-PMS Contract Value,PRC DELEGATED CO-COMMISSIONING,BURNCROSS SURGERY,26357935,"121,727.76 "
Department of Health,NHS Sheffield CCG,31/03/2019,C&M-PMS DES Extended Hours Access,PRC DELEGATED CO-COMMISSIONING,BURNCROSS SURGERY,26357935,"7,340.18 "
Department of Health,NHS Sheffield CCG,31/03/2019,C&M-PMS PCO Seniority,PRC DELEGATED CO-COMMISSIONING,BURNCROSS SURGERY,26357935,"4,112.70 "
Department of Health,NHS Sheffield CCG,31/03/2019,C&M-PMS Prem Notional Rent,PRC DELEGATED CO-COMMISSIONING,BURNCROSS SURGERY,26357935,"14,058.33 "
Department of Health,NHS Sheffield CCG,31/03/2019,C&M-PMS QOF Aspiration,PRC DELEGATED CO-COMMISSIONING,BURNCROSS SURGERY,26357935,"16,082.74 "
Department of Health,NHS Sheffield CCG,31/03/2019,C&M-PMS Contract Value,PRC DELEGATED CO-COMMISSIONING,BURNGREAVE SURGERY,26357937,"56,979.49 "
Department of Health,NHS Sheffield CCG,31/03/2019,C&M-PMS DES Extended Hours Access,PRC DELEGATED CO-COMMISSIONING,BURNGREAVE SURGERY,26357937,"3,195.33 "
Department of Health,NHS Sheffield CCG,31/03/2019,C&M-PMS PCO Seniority,PRC DELEGATED CO-COMMISSIONING,BURNGREAVE SURGERY,26357937,"1,534.18 "
Department of Health,NHS Sheffield CCG,31/03/2019,C&M-PMS Prem Notional Rent,PRC DELEGATED CO-COMMISSIONING,BURNGREAVE SURGERY,26357937,"6,622.92 "
Department of Health,NHS Sheffield CCG,31/03/2019,C&M-PMS QOF Aspiration,PRC DELEGATED CO-COMMISSIONING,BURNGREAVE SURGERY,26357937,"4,881.27 "
Department of Health,NHS Sheffield CCG,31/03/2019,C&M-GMS Cost of Drugs -Prescribing,LOCAL ENHANCED SERVICES,CARTERKNOWLE & DORE MEDICAL PRACTICE,26592293,"4,821.86 "
Department of Health,NHS Sheffield CCG,31/03/2019,C&M-GMS DES Extended Hours Access,PRC DELEGATED CO-COMMISSIONING,CARTERKNOWLE & DORE MEDICAL PRACTICE,26592293,"5,880.03 "
Department of Health,NHS Sheffield CCG,31/03/2019,C&M-GMS Global Sum,PRC DELEGATED CO-COMMISSIONING,CARTERKNOWLE & DORE MEDICAL PRACTICE,26592293,"84,355.76 "
Department of Health,NHS Sheffield CCG,31/03/2019,C&M-GMS MPIG Correction Factor,PRC DELEGATED CO-COMMISSIONING,CARTERKNOWLE & DORE MEDICAL PRACTICE,26592293,"1,494.59 "
Department of Health,NHS Sheffield CCG,31/03/2019,C&M-GMS PCO Seniority,PRC DELEGATED CO-COMMISSIONING,CARTERKNOWLE & DORE MEDICAL PRACTICE,26592293,"2,846.27 "
Department of Health,NHS Sheffield CCG,31/03/2019,C&M-GMS Prem Notional Rent,PRC DELEGATED CO-COMMISSIONING,CARTERKNOWLE & DORE MEDICAL PRACTICE,26592293,"7,596.50 "
Department of Health,NHS Sheffield CCG,31/03/2019,C&M-GMS Prof Fees Prescribing,PRC DELEGATED CO-COMMISSIONING,CARTERKNOWLE & DORE MEDICAL PRACTICE,26592293,490.87 
Department of Health,NHS Sheffield CCG,31/03/2019,C&M-GMS QOF Aspiration,PRC DELEGATED CO-COMMISSIONING,CARTERKNOWLE & DORE MEDICAL PRACTICE,26592293,"10,163.70 "
Department of Health,NHS Sheffield CCG,31/03/2019,C&M-GMS Cost of Drugs -Prescribing,LOCAL ENHANCED SERVICES,CHARNOCK HEALTH PRIMARY CARE CENTRE,26617998,761.36 
Department of Health,NHS Sheffield CCG,31/03/2019,C&M-GMS DES Extended Hours Access,PRC DELEGATED CO-COMMISSIONING,CHARNOCK HEALTH PRIMARY CARE CENTRE,26617998,"2,555.98 "
Department of Health,NHS Sheffield CCG,31/03/2019,C&M-GMS Global Sum,PRC DELEGATED CO-COMMISSIONING,CHARNOCK HEALTH PRIMARY CARE CENTRE,26617998,"41,848.60 "
Department of Health,NHS Sheffield CCG,31/03/2019,C&M-GMS MPIG Correction Factor,PRC DELEGATED CO-COMMISSIONING,CHARNOCK HEALTH PRIMARY CARE CENTRE,26617998,413.25 
Department of Health,NHS Sheffield CCG,31/03/2019,C&M-GMS PCO Locum Sickness,PRC DELEGATED CO-COMMISSIONING,CHARNOCK HEALTH PRIMARY CARE CENTRE,26617998,"3,440.46 "
Department of Health,NHS Sheffield CCG,31/03/2019,C&M-GMS PCO Seniority,PRC DELEGATED CO-COMMISSIONING,CHARNOCK HEALTH PRIMARY CARE CENTRE,26617998,"1,681.86 "
Department of Health,NHS Sheffield CCG,31/03/2019,C&M-GMS Prem Notional Rent,PRC DELEGATED CO-COMMISSIONING,CHARNOCK HEALTH PRIMARY CARE CENTRE,26617998,335.00 
Department of Health,NHS Sheffield CCG,31/03/2019,C&M-GMS Prem Water Rates,PRC DELEGATED CO-COMMISSIONING,CHARNOCK HEALTH PRIMARY CARE CENTRE,26617998,251.43 
Department of Health,NHS Sheffield CCG,31/03/2019,C&M-GMS Prof Fees Prescribing,PRC DELEGATED CO-COMMISSIONING,CHARNOCK HEALTH PRIMARY CARE CENTRE,26617998,133.64 
Department of Health,NHS Sheffield CCG,31/03/2019,C&M-GMS QOF Aspiration,PRC DELEGATED CO-COMMISSIONING,CHARNOCK HEALTH PRIMARY CARE CENTRE,26617998,"4,710.20 "
Department of Health,NHS Sheffield CCG,31/03/2019,Hcare Srv Rec Fdtn Trust-Contract Baseline,ACUTE COMMISSIONING,CHESTERFIELD ROYAL HOSPITAL NHS FOUNDATION TRUST,26313685,"28,226.00 "
Department of Health,NHS Sheffield CCG,31/03/2019,Hcare Srv Rec Fdtn Trust-Contract Baseline,ACUTE COMMISSIONING,CHESTERFIELD ROYAL HOSPITAL NHS FOUNDATION TRUST,26452364,"266,428.00 "
Department of Health,NHS Sheffield CCG,31/03/2019,Clinical&Medical-Independent Sector,ACUTE COMMISSIONING,CLAREMONT HOSPITAL,26392050,"65,047.00 "
Department of Health,NHS Sheffield CCG,31/03/2019,Computer Software/License,PROCUREMENT,COMMERCE DECISIONS LTD,26641541,"82,211.56 "
Department of Health,NHS Sheffield CCG,31/03/2019,Voids and Subsidies,PRC DELEGATED CO-COMMISSIONING,COMMUNITY HEALTH PARTNERSHIPS LTD,26452342,"39,396.90 "
Department of Health,NHS Sheffield CCG,31/03/2019,Voids and Subsidies,RECHARGES NHS PROPERTY SERVICES LTD,COMMUNITY HEALTH PARTNERSHIPS LTD,26452342,"113,924.62 "
Department of Health,NHS Sheffield CCG,31/03/2019,Cont Care-Funded Nursing Care Allow,FUNDED NURSING CARE,COUNTRY COURT CARE LTD,26290011,"30,976.67 "
Department of Health,NHS Sheffield CCG,31/03/2019,C&M-GMS Cost of Drugs -Prescribing,LOCAL ENHANCED SERVICES,CROOKES PRACTICE,26592297,897.31 
Department of Health,NHS Sheffield CCG,31/03/2019,C&M-GMS DES Extended Hours Access,PRC DELEGATED CO-COMMISSIONING,CROOKES PRACTICE,26592297,"3,784.80 "
Department of Health,NHS Sheffield CCG,31/03/2019,C&M-GMS DES Learn Dsblty Hlth Chk,PRC DELEGATED CO-COMMISSIONING,CROOKES PRACTICE,26592297,"2,100.00 "
Department of Health,NHS Sheffield CCG,31/03/2019,C&M-GMS Global Sum,PRC DELEGATED CO-COMMISSIONING,CROOKES PRACTICE,26592297,"50,172.87 "
Department of Health,NHS Sheffield CCG,31/03/2019,C&M-GMS MPIG Correction Factor,PRC DELEGATED CO-COMMISSIONING,CROOKES PRACTICE,26592297,"1,545.92 "
Department of Health,NHS Sheffield CCG,31/03/2019,C&M-GMS PCO Seniority,PRC DELEGATED CO-COMMISSIONING,CROOKES PRACTICE,26592297,"1,737.99 "
Department of Health,NHS Sheffield CCG,31/03/2019,C&M-GMS Prem Notional Rent,PRC DELEGATED CO-COMMISSIONING,CROOKES PRACTICE,26592297,"3,874.67 "
Department of Health,NHS Sheffield CCG,31/03/2019,C&M-GMS Prof Fees Prescribing,PRC DELEGATED CO-COMMISSIONING,CROOKES PRACTICE,26592297,215.88 
Department of Health,NHS Sheffield CCG,31/03/2019,C&M-GMS QOF Aspiration,PRC DELEGATED CO-COMMISSIONING,CROOKES PRACTICE,26592297,"5,056.52 "
Department of Health,NHS Sheffield CCG,31/03/2019,C&M-PMS Contract Value,PRC DELEGATED CO-COMMISSIONING,DEEPCAR MEDICAL CENTRE,26357941,"41,227.29 "
Department of Health,NHS Sheffield CCG,31/03/2019,C&M-PMS DES Extended Hours Access,PRC DELEGATED CO-COMMISSIONING,DEEPCAR MEDICAL CENTRE,26357941,"2,470.95 "
Department of Health,NHS Sheffield CCG,31/03/2019,C&M-PMS PCO Seniority,PRC DELEGATED CO-COMMISSIONING,DEEPCAR MEDICAL CENTRE,26357941,"1,326.30 "
Department of Health,NHS Sheffield CCG,31/03/2019,C&M-PMS Prem Healthcentre Rent,PRC DELEGATED CO-COMMISSIONING,DEEPCAR MEDICAL CENTRE,26357941,"29,067.58 "
Department of Health,NHS Sheffield CCG,31/03/2019,C&M-PMS QOF Aspiration,PRC DELEGATED CO-COMMISSIONING,DEEPCAR MEDICAL CENTRE,26357941,"4,182.29 "
Department of Health,NHS Sheffield CCG,31/03/2019,External Consultancy Fees,BEREAVEMENT SERVICE,DELOITTE MCS LTD,26452402,"171,360.00 "
Department of Health,NHS Sheffield CCG,31/03/2019,Hotel And Accomodation Costs,BEREAVEMENT SERVICE,DELOITTE MCS LTD,26452402,"13,708.80 "
Department of Health,NHS Sheffield CCG,31/03/2019,Rail Travel,BEREAVEMENT SERVICE,DELOITTE MCS LTD,26452402,"3,427.20 "
Department of Health,NHS Sheffield CCG,31/03/2019,External Consultancy Fees,BEREAVEMENT SERVICE,DELOITTE MCS LTD,26604708,"486,424.68 "
Department of Health,NHS Sheffield CCG,31/03/2019,C&M-GMS Practice Transformational Support,LOCAL ENHANCED SERVICES,DEVONSHIRE GREEN MEDICAL CENTRE,26274660,"149,982.00 "
Department of Health,NHS Sheffield CCG,31/03/2019,C&M-APMS LES Basket of Procedures,LOCAL ENHANCED SERVICES,DEVONSHIRE GREEN MEDICAL CENTRE,26274668,"34,000.00 "
Department of Health,NHS Sheffield CCG,31/03/2019,C&M-GMS Cost of Drugs -Prescribing,LOCAL ENHANCED SERVICES,DEVONSHIRE GREEN MEDICAL CENTRE,26592300,678.70 
Department of Health,NHS Sheffield CCG,31/03/2019,C&M-GMS Global Sum,PRC DELEGATED CO-COMMISSIONING,DEVONSHIRE GREEN MEDICAL CENTRE,26592300,"45,766.64 "
Department of Health,NHS Sheffield CCG,31/03/2019,C&M-GMS MPIG Correction Factor,PRC DELEGATED CO-COMMISSIONING,DEVONSHIRE GREEN MEDICAL CENTRE,26592300,"3,231.20 "
Department of Health,NHS Sheffield CCG,31/03/2019,C&M-GMS PCO Seniority,PRC DELEGATED CO-COMMISSIONING,DEVONSHIRE GREEN MEDICAL CENTRE,26592300,"2,449.85 "
Department of Health,NHS Sheffield CCG,31/03/2019,C&M-GMS Prem Notional Rent,PRC DELEGATED CO-COMMISSIONING,DEVONSHIRE GREEN MEDICAL CENTRE,26592300,"5,987.50 "
Department of Health,NHS Sheffield CCG,31/03/2019,C&M-GMS Prof Fees Prescribing,PRC DELEGATED CO-COMMISSIONING,DEVONSHIRE GREEN MEDICAL CENTRE,26592300,159.34 
Department of Health,NHS Sheffield CCG,31/03/2019,C&M-GMS QOF Aspiration,PRC DELEGATED CO-COMMISSIONING,DEVONSHIRE GREEN MEDICAL CENTRE,26592300,"4,641.81 "
Department of Health,NHS Sheffield CCG,31/03/2019,Hcare Srv Rec Fdtn Trust-Non Contract,BEREAVEMENT SERVICE,DONCASTER AND BASSETLAW HOSPITALS NHS FOUNDATION TRUST,26214125,"1,500,000.00 "
Department of Health,NHS Sheffield CCG,31/03/2019,Hcare Srv Rec Fdtn Trust-Contract Baseline,ACUTE COMMISSIONING,DONCASTER AND BASSETLAW HOSPITALS NHS FOUNDATION TRUST,26313674,"35,160.00 "
Department of Health,NHS Sheffield CCG,31/03/2019,Oth Travel Costs-Car Mileage,BEREAVEMENT SERVICE,DONCASTER AND BASSETLAW HOSPITALS NHS FOUNDATION TRUST,26391987,165.50 
Department of Health,NHS Sheffield CCG,31/03/2019,Other Travel Costs - Car Parking,BEREAVEMENT SERVICE,DONCASTER AND BASSETLAW HOSPITALS NHS FOUNDATION TRUST,26391987,6.00 
Department of Health,NHS Sheffield CCG,31/03/2019,Seconded-Basic Sal-Staff fm oth org,BEREAVEMENT SERVICE,DONCASTER AND BASSETLAW HOSPITALS NHS FOUNDATION TRUST,26391987,"28,311.57 "
Department of Health,NHS Sheffield CCG,31/03/2019,Seconded-Basic Sal-Staff fm oth org,BEREAVEMENT SERVICE,DONCASTER AND BASSETLAW HOSPITALS NHS FOUNDATION TRUST,26452321,"37,274.29 "
Department of Health,NHS Sheffield CCG,31/03/2019,C&M-PMS Contract Value,PRC DELEGATED CO-COMMISSIONING,DOVERCOURT SURGERY,26357943,"72,767.61 "
Department of Health,NHS Sheffield CCG,31/03/2019,C&M-PMS DES Extended Hours Access,PRC DELEGATED CO-COMMISSIONING,DOVERCOURT SURGERY,26357943,"3,960.08 "
Department of Health,NHS Sheffield CCG,31/03/2019,C&M-PMS Out of Hours Opt Outs,PRC DELEGATED CO-COMMISSIONING,DOVERCOURT SURGERY,26357943,11.29 
Department of Health,NHS Sheffield CCG,31/03/2019,C&M-PMS PCO Seniority,PRC DELEGATED CO-COMMISSIONING,DOVERCOURT SURGERY,26357943,"1,534.18 "
Department of Health,NHS Sheffield CCG,31/03/2019,C&M-PMS Prem Actual Rent,PRC DELEGATED CO-COMMISSIONING,DOVERCOURT SURGERY,26357943,"12,400.00 "
Department of Health,NHS Sheffield CCG,31/03/2019,C&M-PMS Prem Notional Rent,PRC DELEGATED CO-COMMISSIONING,DOVERCOURT SURGERY,26357943,"1,708.34 "
Department of Health,NHS Sheffield CCG,31/03/2019,C&M-PMS QOF Aspiration,PRC DELEGATED CO-COMMISSIONING,DOVERCOURT SURGERY,26357943,"7,443.07 "
Department of Health,NHS Sheffield CCG,31/03/2019,C&M-PMS Contract Value,PRC DELEGATED CO-COMMISSIONING,DR MEHROTRA & PARTNER,26357945,"27,872.06 "
Department of Health,NHS Sheffield CCG,31/03/2019,C&M-PMS DES Extended Hours Access,PRC DELEGATED CO-COMMISSIONING,DR MEHROTRA & PARTNER,26357945,"1,622.13 "
Department of Health,NHS Sheffield CCG,31/03/2019,C&M-PMS PCO Seniority,PRC DELEGATED CO-COMMISSIONING,DR MEHROTRA & PARTNER,26357945,567.64 
Department of Health,NHS Sheffield CCG,31/03/2019,C&M-PMS Prem Actual Rent,PRC DELEGATED CO-COMMISSIONING,DR MEHROTRA & PARTNER,26357945,"2,650.00 "
Department of Health,NHS Sheffield CCG,31/03/2019,C&M-PMS Prem Notional Rent,PRC DELEGATED CO-COMMISSIONING,DR MEHROTRA & PARTNER,26357945,"5,157.29 "
Department of Health,NHS Sheffield CCG,31/03/2019,C&M-PMS QOF Aspiration,PRC DELEGATED CO-COMMISSIONING,DR MEHROTRA & PARTNER,26357945,"3,078.44 "
Department of Health,NHS Sheffield CCG,31/03/2019,C&M-PMS Contract Value,PRC DELEGATED CO-COMMISSIONING,DR MILNER & PARTNERS,26357946,(530.68)
Department of Health,NHS Sheffield CCG,31/03/2019,C&M-PMS GP Statutory Levy,PRC DELEGATED CO-COMMISSIONING,DR MILNER & PARTNERS,26357946,(640.02)
Department of Health,NHS Sheffield CCG,31/03/2019,C&M-PMS Out of Hours Opt Outs,PRC DELEGATED CO-COMMISSIONING,DR MILNER & PARTNERS,26357946,"(3,556.82)"
Department of Health,NHS Sheffield CCG,31/03/2019,C&M-PMS Voluntary Levy,PRC DELEGATED CO-COMMISSIONING,DR MILNER & PARTNERS,26357946,(106.68)
Department of Health,NHS Sheffield CCG,31/03/2019,C&M-PMS Contract Value,PRC DELEGATED CO-COMMISSIONING,DR MILNER & PARTNERS,26357947,"75,515.81 "
Department of Health,NHS Sheffield CCG,31/03/2019,C&M-PMS DES Extended Hours Access,PRC DELEGATED CO-COMMISSIONING,DR MILNER & PARTNERS,26357947,"5,036.90 "
Department of Health,NHS Sheffield CCG,31/03/2019,C&M-PMS Out of Hours Opt Outs,PRC DELEGATED CO-COMMISSIONING,DR MILNER & PARTNERS,26357947,26.10 
Department of Health,NHS Sheffield CCG,31/03/2019,C&M-PMS PCO Seniority,PRC DELEGATED CO-COMMISSIONING,DR MILNER & PARTNERS,26357947,"1,656.58 "
Department of Health,NHS Sheffield CCG,31/03/2019,C&M-PMS Prem Actual Rent,PRC DELEGATED CO-COMMISSIONING,DR MILNER & PARTNERS,26357947,"11,382.00 "
Department of Health,NHS Sheffield CCG,31/03/2019,C&M-PMS Prem Notional Rent,PRC DELEGATED CO-COMMISSIONING,DR MILNER & PARTNERS,26357947,"4,462.42 "
Department of Health,NHS Sheffield CCG,31/03/2019,C&M-PMS Prem Rates,PRC DELEGATED CO-COMMISSIONING,DR MILNER & PARTNERS,26357947,"2,464.00 "
Department of Health,NHS Sheffield CCG,31/03/2019,C&M-PMS QOF Aspiration,PRC DELEGATED CO-COMMISSIONING,DR MILNER & PARTNERS,26357947,"6,553.23 "
Department of Health,NHS Sheffield CCG,31/03/2019,C&M-GMS Cost of Drugs -Prescribing,LOCAL ENHANCED SERVICES,DUKE MEDICAL CENTRE,26592307,"2,042.59 "
Department of Health,NHS Sheffield CCG,31/03/2019,C&M-GMS DES Extended Hours Access,PRC DELEGATED CO-COMMISSIONING,DUKE MEDICAL CENTRE,26592307,"3,310.75 "
Department of Health,NHS Sheffield CCG,31/03/2019,C&M-GMS Global Sum,PRC DELEGATED CO-COMMISSIONING,DUKE MEDICAL CENTRE,26592307,"57,624.97 "
Department of Health,NHS Sheffield CCG,31/03/2019,C&M-GMS MPIG Correction Factor,PRC DELEGATED CO-COMMISSIONING,DUKE MEDICAL CENTRE,26592307,612.51 
Department of Health,NHS Sheffield CCG,31/03/2019,C&M-GMS PCO Seniority,PRC DELEGATED CO-COMMISSIONING,DUKE MEDICAL CENTRE,26592307,"1,452.90 "
Department of Health,NHS Sheffield CCG,31/03/2019,C&M-GMS Prem Notional Rent,PRC DELEGATED CO-COMMISSIONING,DUKE MEDICAL CENTRE,26592307,"5,721.67 "
Department of Health,NHS Sheffield CCG,31/03/2019,C&M-GMS Prem Water Rates,PRC DELEGATED CO-COMMISSIONING,DUKE MEDICAL CENTRE,26592307,243.43 
Department of Health,NHS Sheffield CCG,31/03/2019,C&M-GMS Prof Fees Prescribing,PRC DELEGATED CO-COMMISSIONING,DUKE MEDICAL CENTRE,26592307,429.19 
Department of Health,NHS Sheffield CCG,31/03/2019,C&M-GMS QOF Aspiration,PRC DELEGATED CO-COMMISSIONING,DUKE MEDICAL CENTRE,26592307,"4,948.64 "
Department of Health,NHS Sheffield CCG,31/03/2019,C&M-PMS Contract Value,PRC DELEGATED CO-COMMISSIONING,DUNNINC ROAD SURGERY,26357949,"24,109.99 "
Department of Health,NHS Sheffield CCG,31/03/2019,C&M-PMS DES Extended Hours Access,PRC DELEGATED CO-COMMISSIONING,DUNNINC ROAD SURGERY,26357949,"1,417.40 "
Department of Health,NHS Sheffield CCG,31/03/2019,C&M-PMS PCO Seniority,PRC DELEGATED CO-COMMISSIONING,DUNNINC ROAD SURGERY,26357949,"1,761.84 "
Department of Health,NHS Sheffield CCG,31/03/2019,C&M-PMS Prem Notional Rent,PRC DELEGATED CO-COMMISSIONING,DUNNINC ROAD SURGERY,26357949,"1,664.58 "
Department of Health,NHS Sheffield CCG,31/03/2019,C&M-PMS QOF Aspiration,PRC DELEGATED CO-COMMISSIONING,DUNNINC ROAD SURGERY,26357949,"2,554.49 "
Department of Health,NHS Sheffield CCG,31/03/2019,C&M-PMS Contract Value,PRC DELEGATED CO-COMMISSIONING,DYKES HALL MEDICAL CENTRE,26357951,"72,875.73 "
Department of Health,NHS Sheffield CCG,31/03/2019,C&M-PMS DES Extended Hours Access,PRC DELEGATED CO-COMMISSIONING,DYKES HALL MEDICAL CENTRE,26357951,"4,625.55 "
Department of Health,NHS Sheffield CCG,31/03/2019,C&M-PMS Out of Hours Opt Outs,PRC DELEGATED CO-COMMISSIONING,DYKES HALL MEDICAL CENTRE,26357951,12.02 
Department of Health,NHS Sheffield CCG,31/03/2019,C&M-PMS PCO Seniority,PRC DELEGATED CO-COMMISSIONING,DYKES HALL MEDICAL CENTRE,26357951,"2,043.97 "
Department of Health,NHS Sheffield CCG,31/03/2019,C&M-PMS Prem Notional Rent,PRC DELEGATED CO-COMMISSIONING,DYKES HALL MEDICAL CENTRE,26357951,"5,377.08 "
Department of Health,NHS Sheffield CCG,31/03/2019,C&M-PMS QOF Aspiration,PRC DELEGATED CO-COMMISSIONING,DYKES HALL MEDICAL CENTRE,26357951,"8,079.17 "
Department of Health,NHS Sheffield CCG,31/03/2019,C&M-PMS Contract Value,PRC DELEGATED CO-COMMISSIONING,EAST BANK MEDICAL CENTRE,26357953,"47,623.73 "
Department of Health,NHS Sheffield CCG,31/03/2019,C&M-PMS DES Extended Hours Access,PRC DELEGATED CO-COMMISSIONING,EAST BANK MEDICAL CENTRE,26357953,"2,664.75 "
Department of Health,NHS Sheffield CCG,31/03/2019,C&M-PMS PCO Seniority,PRC DELEGATED CO-COMMISSIONING,EAST BANK MEDICAL CENTRE,26357953,"1,132.19 "
Department of Health,NHS Sheffield CCG,31/03/2019,C&M-PMS Prem Notional Rent,PRC DELEGATED CO-COMMISSIONING,EAST BANK MEDICAL CENTRE,26357953,"10,583.34 "
Department of Health,NHS Sheffield CCG,31/03/2019,C&M-PMS QOF Aspiration,PRC DELEGATED CO-COMMISSIONING,EAST BANK MEDICAL CENTRE,26357953,"4,881.64 "
Department of Health,NHS Sheffield CCG,31/03/2019,C&M-GMS Cost of Drugs -Prescribing,LOCAL ENHANCED SERVICES,ECCLESFIELD GROUP PRACTICE,26592303,"2,566.16 "
Department of Health,NHS Sheffield CCG,31/03/2019,C&M-GMS DES Extended Hours Access,PRC DELEGATED CO-COMMISSIONING,ECCLESFIELD GROUP PRACTICE,26592303,"3,883.60 "
Department of Health,NHS Sheffield CCG,31/03/2019,C&M-GMS Global Sum,PRC DELEGATED CO-COMMISSIONING,ECCLESFIELD GROUP PRACTICE,26592303,"67,421.93 "
Department of Health,NHS Sheffield CCG,31/03/2019,C&M-GMS PCO Seniority,PRC DELEGATED CO-COMMISSIONING,ECCLESFIELD GROUP PRACTICE,26592303,"1,843.12 "
Department of Health,NHS Sheffield CCG,31/03/2019,C&M-GMS Prem Notional Rent,PRC DELEGATED CO-COMMISSIONING,ECCLESFIELD GROUP PRACTICE,26592303,"6,805.42 "
Department of Health,NHS Sheffield CCG,31/03/2019,C&M-GMS Prof Fees Prescribing,PRC DELEGATED CO-COMMISSIONING,ECCLESFIELD GROUP PRACTICE,26592303,395.78 
Department of Health,NHS Sheffield CCG,31/03/2019,C&M-GMS QOF Aspiration,PRC DELEGATED CO-COMMISSIONING,ECCLESFIELD GROUP PRACTICE,26592303,"8,811.44 "
Department of Health,NHS Sheffield CCG,31/03/2019,C&M-GMS Practice Transformational Support,LOCAL ENHANCED SERVICES,ECCLESFIELD GROUP PRACTICE,26604743,"65,500.00 "
Department of Health,NHS Sheffield CCG,31/03/2019,C&M-GMS Cost of Drugs -Prescribing,LOCAL ENHANCED SERVICES,ELM LANE SURGERY,26592305,"1,015.08 "
Department of Health,NHS Sheffield CCG,31/03/2019,C&M-GMS Global Sum,PRC DELEGATED CO-COMMISSIONING,ELM LANE SURGERY,26592305,"39,526.15 "
Department of Health,NHS Sheffield CCG,31/03/2019,C&M-GMS MPIG Correction Factor,PRC DELEGATED CO-COMMISSIONING,ELM LANE SURGERY,26592305,838.53 
Department of Health,NHS Sheffield CCG,31/03/2019,C&M-GMS PCO Seniority,PRC DELEGATED CO-COMMISSIONING,ELM LANE SURGERY,26592305,"1,230.08 "
Department of Health,NHS Sheffield CCG,31/03/2019,C&M-GMS Prem Notional Rent,PRC DELEGATED CO-COMMISSIONING,ELM LANE SURGERY,26592305,"5,305.50 "
Department of Health,NHS Sheffield CCG,31/03/2019,C&M-GMS Prof Fees Prescribing,PRC DELEGATED CO-COMMISSIONING,ELM LANE SURGERY,26592305,323.82 
Department of Health,NHS Sheffield CCG,31/03/2019,C&M-GMS QOF Aspiration,PRC DELEGATED CO-COMMISSIONING,ELM LANE SURGERY,26592305,"4,467.14 "
Department of Health,NHS Sheffield CCG,31/03/2019,Cont Care-Physical Disab (<65),CHC ADULT FULLY FUNDED,FAIRWINDS HEALTH CARE LTD,26288876,"39,203.66 "
Department of Health,NHS Sheffield CCG,31/03/2019,C&M-PMS Contract Value,PRC DELEGATED CO-COMMISSIONING,FALKLAND HOUSE,26357957,"25,925.02 "
Department of Health,NHS Sheffield CCG,31/03/2019,C&M-PMS DES Extended Hours Access,PRC DELEGATED CO-COMMISSIONING,FALKLAND HOUSE,26357957,"1,885.75 "
Department of Health,NHS Sheffield CCG,31/03/2019,C&M-PMS Out of Hours Opt Outs,PRC DELEGATED CO-COMMISSIONING,FALKLAND HOUSE,26357957,7.59 
Department of Health,NHS Sheffield CCG,31/03/2019,C&M-PMS PCO Seniority,PRC DELEGATED CO-COMMISSIONING,FALKLAND HOUSE,26357957,"1,844.45 "
Department of Health,NHS Sheffield CCG,31/03/2019,C&M-PMS Prem Notional Rent,PRC DELEGATED CO-COMMISSIONING,FALKLAND HOUSE,26357957,"1,866.67 "
Department of Health,NHS Sheffield CCG,31/03/2019,C&M-PMS QOF Aspiration,PRC DELEGATED CO-COMMISSIONING,FALKLAND HOUSE,26357957,"2,902.49 "
Department of Health,NHS Sheffield CCG,31/03/2019,C&M-GMS Cost of Drugs -Prescribing,LOCAL ENHANCED SERVICES,FAR LANE MEDICAL CENTRE,26617997,495.58 
Department of Health,NHS Sheffield CCG,31/03/2019,C&M-GMS Global Sum,PRC DELEGATED CO-COMMISSIONING,FAR LANE MEDICAL CENTRE,26617997,"54,818.94 "
Department of Health,NHS Sheffield CCG,31/03/2019,C&M-GMS PCO Seniority,PRC DELEGATED CO-COMMISSIONING,FAR LANE MEDICAL CENTRE,26617997,"4,177.12 "
Department of Health,NHS Sheffield CCG,31/03/2019,C&M-GMS Prem Notional Rent,PRC DELEGATED CO-COMMISSIONING,FAR LANE MEDICAL CENTRE,26617997,"3,462.50 "
Department of Health,NHS Sheffield CCG,31/03/2019,C&M-GMS Prem Water Rates,PRC DELEGATED CO-COMMISSIONING,FAR LANE MEDICAL CENTRE,26617997,59.76 
Department of Health,NHS Sheffield CCG,31/03/2019,C&M-GMS Prof Fees Prescribing,PRC DELEGATED CO-COMMISSIONING,FAR LANE MEDICAL CENTRE,26617997,167.05 
Department of Health,NHS Sheffield CCG,31/03/2019,C&M-GMS QOF Aspiration,PRC DELEGATED CO-COMMISSIONING,FAR LANE MEDICAL CENTRE,26617997,"5,824.23 "
Department of Health,NHS Sheffield CCG,31/03/2019,C&M-PMS Contract Value,PRC DELEGATED CO-COMMISSIONING,FIRTH PARK SURGERY,26357955,"74,421.36 "
Department of Health,NHS Sheffield CCG,31/03/2019,C&M-PMS DES Extended Hours Access,PRC DELEGATED CO-COMMISSIONING,FIRTH PARK SURGERY,26357955,"4,694.43 "
Department of Health,NHS Sheffield CCG,31/03/2019,C&M-PMS Out of Hours Opt Outs,PRC DELEGATED CO-COMMISSIONING,FIRTH PARK SURGERY,26357955,5.84 
Department of Health,NHS Sheffield CCG,31/03/2019,C&M-PMS PCO Seniority,PRC DELEGATED CO-COMMISSIONING,FIRTH PARK SURGERY,26357955,"2,502.73 "
Department of Health,NHS Sheffield CCG,31/03/2019,C&M-PMS Prem Notional Rent,PRC DELEGATED CO-COMMISSIONING,FIRTH PARK SURGERY,26357955,"4,500.00 "
Department of Health,NHS Sheffield CCG,31/03/2019,C&M-PMS Prem Rates,PRC DELEGATED CO-COMMISSIONING,FIRTH PARK SURGERY,26357955,"1,330.00 "
Department of Health,NHS Sheffield CCG,31/03/2019,C&M-PMS Prem Water Rates,PRC DELEGATED CO-COMMISSIONING,FIRTH PARK SURGERY,26357955,238.19 
Department of Health,NHS Sheffield CCG,31/03/2019,C&M-PMS QOF Aspiration,PRC DELEGATED CO-COMMISSIONING,FIRTH PARK SURGERY,26357955,"7,359.15 "
Department of Health,NHS Sheffield CCG,31/03/2019,C&M-GMS Cost of Drugs -Prescribing,LOCAL ENHANCED SERVICES,FLOWERS HEALTH CENTRE,26592382,456.23 
Department of Health,NHS Sheffield CCG,31/03/2019,C&M-GMS Global Sum,PRC DELEGATED CO-COMMISSIONING,FLOWERS HEALTH CENTRE,26592382,"36,838.54 "
Department of Health,NHS Sheffield CCG,31/03/2019,C&M-GMS MPIG Correction Factor,PRC DELEGATED CO-COMMISSIONING,FLOWERS HEALTH CENTRE,26592382,"1,476.31 "
Department of Health,NHS Sheffield CCG,31/03/2019,C&M-GMS Prem Healthcentre Rent,PRC DELEGATED CO-COMMISSIONING,FLOWERS HEALTH CENTRE,26592382,"33,513.30 "
Department of Health,NHS Sheffield CCG,31/03/2019,C&M-GMS Prof Fees Prescribing,PRC DELEGATED CO-COMMISSIONING,FLOWERS HEALTH CENTRE,26592382,113.08 
Department of Health,NHS Sheffield CCG,31/03/2019,C&M-GMS QOF Aspiration,PRC DELEGATED CO-COMMISSIONING,FLOWERS HEALTH CENTRE,26592382,"4,241.34 "
Department of Health,NHS Sheffield CCG,31/03/2019,C&M-PMS Practice Transformational Support,LOCAL ENHANCED SERVICES,FOUNDRY MEDICAL GROUP,26214166,"200,000.00 "
Department of Health,NHS Sheffield CCG,31/03/2019,Cont Care-Physical Disab (<65),CHC ADULT FULLY FUNDED,FOUR SEASONS HEALTH CARE LTD,26288871,"38,427.27 "
Department of Health,NHS Sheffield CCG,31/03/2019,C&M-PMS Contract Value,PRC DELEGATED CO-COMMISSIONING,FOXHILL MEDICAL CENTRE SHEFFIELD,26358003,"51,983.21 "
Department of Health,NHS Sheffield CCG,31/03/2019,C&M-PMS DES Extended Hours Access,PRC DELEGATED CO-COMMISSIONING,FOXHILL MEDICAL CENTRE SHEFFIELD,26358003,"2,940.25 "
Department of Health,NHS Sheffield CCG,31/03/2019,C&M-PMS Out of Hours Opt Outs,PRC DELEGATED CO-COMMISSIONING,FOXHILL MEDICAL CENTRE SHEFFIELD,26358003,33.59 
Department of Health,NHS Sheffield CCG,31/03/2019,C&M-PMS PCO Locum Adop/Pat/Mat,PRC DELEGATED CO-COMMISSIONING,FOXHILL MEDICAL CENTRE SHEFFIELD,26358003,"4,093.85 "
Department of Health,NHS Sheffield CCG,31/03/2019,C&M-PMS PCO Seniority,PRC DELEGATED CO-COMMISSIONING,FOXHILL MEDICAL CENTRE SHEFFIELD,26358003,"2,919.46 "
Department of Health,NHS Sheffield CCG,31/03/2019,C&M-PMS Prem Healthcentre Rent,PRC DELEGATED CO-COMMISSIONING,FOXHILL MEDICAL CENTRE SHEFFIELD,26358003,"46,751.16 "
Department of Health,NHS Sheffield CCG,31/03/2019,C&M-PMS QOF Aspiration,PRC DELEGATED CO-COMMISSIONING,FOXHILL MEDICAL CENTRE SHEFFIELD,26358003,"5,580.51 "
Department of Health,NHS Sheffield CCG,31/03/2019,C&M-PMS Contract Value,PRC DELEGATED CO-COMMISSIONING,GLEADLESS MEDICAL CENTRE,26357959,"69,435.00 "
Department of Health,NHS Sheffield CCG,31/03/2019,C&M-PMS Out of Hours Opt Outs,PRC DELEGATED CO-COMMISSIONING,GLEADLESS MEDICAL CENTRE,26357959,59.24 
Department of Health,NHS Sheffield CCG,31/03/2019,C&M-PMS PCO Seniority,PRC DELEGATED CO-COMMISSIONING,GLEADLESS MEDICAL CENTRE,26357959,"3,488.95 "
Department of Health,NHS Sheffield CCG,31/03/2019,C&M-PMS Prem Notional Rent,PRC DELEGATED CO-COMMISSIONING,GLEADLESS MEDICAL CENTRE,26357959,"6,750.00 "
Department of Health,NHS Sheffield CCG,31/03/2019,C&M-PMS QOF Aspiration,PRC DELEGATED CO-COMMISSIONING,GLEADLESS MEDICAL CENTRE,26357959,"7,712.98 "
Department of Health,NHS Sheffield CCG,31/03/2019,C&M-GMS Cost of Drugs -Prescribing,LOCAL ENHANCED SERVICES,GRENOSIDE SURGERY,26592321,"2,369.54 "
Department of Health,NHS Sheffield CCG,31/03/2019,C&M-GMS DES Extended Hours Access,PRC DELEGATED CO-COMMISSIONING,GRENOSIDE SURGERY,26592321,"3,512.15 "
Department of Health,NHS Sheffield CCG,31/03/2019,C&M-GMS Global Sum,PRC DELEGATED CO-COMMISSIONING,GRENOSIDE SURGERY,26592321,"57,269.55 "
Department of Health,NHS Sheffield CCG,31/03/2019,C&M-GMS PCO Seniority,PRC DELEGATED CO-COMMISSIONING,GRENOSIDE SURGERY,26592321,"1,669.96 "
Department of Health,NHS Sheffield CCG,31/03/2019,C&M-GMS Prem Notional Rent,PRC DELEGATED CO-COMMISSIONING,GRENOSIDE SURGERY,26592321,"8,110.42 "
Department of Health,NHS Sheffield CCG,31/03/2019,C&M-GMS Prem Water Rates,PRC DELEGATED CO-COMMISSIONING,GRENOSIDE SURGERY,26592321,114.30 
Department of Health,NHS Sheffield CCG,31/03/2019,C&M-GMS Prof Fees Prescribing,PRC DELEGATED CO-COMMISSIONING,GRENOSIDE SURGERY,26592321,215.88 
Department of Health,NHS Sheffield CCG,31/03/2019,C&M-GMS QOF Aspiration,PRC DELEGATED CO-COMMISSIONING,GRENOSIDE SURGERY,26592321,"5,655.38 "
Department of Health,NHS Sheffield CCG,31/03/2019,C&M-GMS Cost of Drugs -Prescribing,LOCAL ENHANCED SERVICES,GREYSTONES MEDICAL CENTRE,26592323,424.64 
Department of Health,NHS Sheffield CCG,31/03/2019,C&M-GMS DES Extended Hours Access,PRC DELEGATED CO-COMMISSIONING,GREYSTONES MEDICAL CENTRE,26592323,"1,772.70 "
Department of Health,NHS Sheffield CCG,31/03/2019,C&M-GMS Global Sum,PRC DELEGATED CO-COMMISSIONING,GREYSTONES MEDICAL CENTRE,26592323,"19,612.97 "
Department of Health,NHS Sheffield CCG,31/03/2019,C&M-GMS MPIG Correction Factor,PRC DELEGATED CO-COMMISSIONING,GREYSTONES MEDICAL CENTRE,26592323,"1,104.46 "
Department of Health,NHS Sheffield CCG,31/03/2019,C&M-GMS PCO Seniority,PRC DELEGATED CO-COMMISSIONING,GREYSTONES MEDICAL CENTRE,26592323,516.08 
Department of Health,NHS Sheffield CCG,31/03/2019,C&M-GMS Prem Notional Rent,PRC DELEGATED CO-COMMISSIONING,GREYSTONES MEDICAL CENTRE,26592323,"2,885.42 "
Department of Health,NHS Sheffield CCG,31/03/2019,C&M-GMS Prem Rates,PRC DELEGATED CO-COMMISSIONING,GREYSTONES MEDICAL CENTRE,26592323,538.00 
Department of Health,NHS Sheffield CCG,31/03/2019,C&M-GMS Prem Water Rates,PRC DELEGATED CO-COMMISSIONING,GREYSTONES MEDICAL CENTRE,26592323,100.77 
Department of Health,NHS Sheffield CCG,31/03/2019,C&M-GMS Prof Fees Prescribing,PRC DELEGATED CO-COMMISSIONING,GREYSTONES MEDICAL CENTRE,26592323,74.53 
Department of Health,NHS Sheffield CCG,31/03/2019,C&M-GMS QOF Aspiration,PRC DELEGATED CO-COMMISSIONING,GREYSTONES MEDICAL CENTRE,26592323,"2,246.27 "
Department of Health,NHS Sheffield CCG,31/03/2019,C&M-PMS Contract Value,PRC DELEGATED CO-COMMISSIONING,HACKENTHORPE MEDICAL CENTRE,26357961,"48,555.66 "
Department of Health,NHS Sheffield CCG,31/03/2019,C&M-PMS DES Extended Hours Access,PRC DELEGATED CO-COMMISSIONING,HACKENTHORPE MEDICAL CENTRE,26357961,"3,189.63 "
Department of Health,NHS Sheffield CCG,31/03/2019,C&M-PMS Out of Hours Opt Outs,PRC DELEGATED CO-COMMISSIONING,HACKENTHORPE MEDICAL CENTRE,26357961,7.25 
Department of Health,NHS Sheffield CCG,31/03/2019,C&M-PMS PCO Locum Adop/Pat/Mat,PRC DELEGATED CO-COMMISSIONING,HACKENTHORPE MEDICAL CENTRE,26357961,"15,658.99 "
Department of Health,NHS Sheffield CCG,31/03/2019,C&M-PMS PCO Seniority,PRC DELEGATED CO-COMMISSIONING,HACKENTHORPE MEDICAL CENTRE,26357961,"2,691.40 "
Department of Health,NHS Sheffield CCG,31/03/2019,C&M-PMS Prem Notional Rent,PRC DELEGATED CO-COMMISSIONING,HACKENTHORPE MEDICAL CENTRE,26357961,"6,777.29 "
Department of Health,NHS Sheffield CCG,31/03/2019,C&M-PMS Prem Water Rates,PRC DELEGATED CO-COMMISSIONING,HACKENTHORPE MEDICAL CENTRE,26357961,407.05 
Department of Health,NHS Sheffield CCG,31/03/2019,C&M-PMS QOF Aspiration,PRC DELEGATED CO-COMMISSIONING,HACKENTHORPE MEDICAL CENTRE,26357961,"6,346.88 "
Department of Health,NHS Sheffield CCG,31/03/2019,C&M-GMS Cost of Drugs -Prescribing,LOCAL ENHANCED SERVICES,HANDSWORTH MEDICAL PRACTICE SHEFFIELD,26592319,"1,651.02 "
Department of Health,NHS Sheffield CCG,31/03/2019,C&M-GMS DES Extended Hours Access,PRC DELEGATED CO-COMMISSIONING,HANDSWORTH MEDICAL PRACTICE SHEFFIELD,26592319,"4,678.75 "
Department of Health,NHS Sheffield CCG,31/03/2019,C&M-GMS Global Sum,PRC DELEGATED CO-COMMISSIONING,HANDSWORTH MEDICAL PRACTICE SHEFFIELD,26592319,"75,435.85 "
Department of Health,NHS Sheffield CCG,31/03/2019,C&M-GMS PCO Seniority,PRC DELEGATED CO-COMMISSIONING,HANDSWORTH MEDICAL PRACTICE SHEFFIELD,26592319,"1,844.45 "
Department of Health,NHS Sheffield CCG,31/03/2019,C&M-GMS Prem Notional Rent,PRC DELEGATED CO-COMMISSIONING,HANDSWORTH MEDICAL PRACTICE SHEFFIELD,26592319,"3,321.66 "
Department of Health,NHS Sheffield CCG,31/03/2019,C&M-GMS Prof Fees Prescribing,PRC DELEGATED CO-COMMISSIONING,HANDSWORTH MEDICAL PRACTICE SHEFFIELD,26592319,349.52 
Department of Health,NHS Sheffield CCG,31/03/2019,C&M-GMS QOF Aspiration,PRC DELEGATED CO-COMMISSIONING,HANDSWORTH MEDICAL PRACTICE SHEFFIELD,26592319,"7,379.76 "
Department of Health,NHS Sheffield CCG,31/03/2019,C&M-GMS Cost of Drugs -Prescribing,LOCAL ENHANCED SERVICES,HAROLD STREET MEDICAL CENTRE,26592316,389.57 
Department of Health,NHS Sheffield CCG,31/03/2019,C&M-GMS DES Extended Hours Access,PRC DELEGATED CO-COMMISSIONING,HAROLD STREET MEDICAL CENTRE,26592316,609.43 
Department of Health,NHS Sheffield CCG,31/03/2019,C&M-GMS Global Sum,PRC DELEGATED CO-COMMISSIONING,HAROLD STREET MEDICAL CENTRE,26592316,"20,783.31 "
Department of Health,NHS Sheffield CCG,31/03/2019,C&M-GMS PCO Seniority,PRC DELEGATED CO-COMMISSIONING,HAROLD STREET MEDICAL CENTRE,26592316,"1,159.69 "
Department of Health,NHS Sheffield CCG,31/03/2019,C&M-GMS Prem Notional Rent,PRC DELEGATED CO-COMMISSIONING,HAROLD STREET MEDICAL CENTRE,26592316,"4,675.00 "
Department of Health,NHS Sheffield CCG,31/03/2019,C&M-GMS Prof Fees Prescribing,PRC DELEGATED CO-COMMISSIONING,HAROLD STREET MEDICAL CENTRE,26592316,51.40 
Department of Health,NHS Sheffield CCG,31/03/2019,C&M-GMS QOF Aspiration,PRC DELEGATED CO-COMMISSIONING,HAROLD STREET MEDICAL CENTRE,26592316,"2,464.80 "
Department of Health,NHS Sheffield CCG,31/03/2019,C&M-GMS Cost of Drugs -Prescribing,LOCAL ENHANCED SERVICES,HEALTH CARE SURGERY,26592329,811.82 
Department of Health,NHS Sheffield CCG,31/03/2019,C&M-GMS DES Extended Hours Access,PRC DELEGATED CO-COMMISSIONING,HEALTH CARE SURGERY,26592329,"2,388.78 "
Department of Health,NHS Sheffield CCG,31/03/2019,C&M-GMS DES Learn Dsblty Hlth Chk,PRC DELEGATED CO-COMMISSIONING,HEALTH CARE SURGERY,26592329,140.00 
Department of Health,NHS Sheffield CCG,31/03/2019,C&M-GMS Global Sum,PRC DELEGATED CO-COMMISSIONING,HEALTH CARE SURGERY,26592329,"38,345.60 "
Department of Health,NHS Sheffield CCG,31/03/2019,C&M-GMS MPIG Correction Factor,PRC DELEGATED CO-COMMISSIONING,HEALTH CARE SURGERY,26592329,780.02 
Department of Health,NHS Sheffield CCG,31/03/2019,C&M-GMS PCO Locum Adop/Pat/Mat,PRC DELEGATED CO-COMMISSIONING,HEALTH CARE SURGERY,26592329,"8,885.58 "
Department of Health,NHS Sheffield CCG,31/03/2019,C&M-GMS PCO Seniority,PRC DELEGATED CO-COMMISSIONING,HEALTH CARE SURGERY,26592329,567.64 
Department of Health,NHS Sheffield CCG,31/03/2019,C&M-GMS Prem Notional Rent,PRC DELEGATED CO-COMMISSIONING,HEALTH CARE SURGERY,26592329,"3,862.50 "
Department of Health,NHS Sheffield CCG,31/03/2019,C&M-GMS Prem Rates,PRC DELEGATED CO-COMMISSIONING,HEALTH CARE SURGERY,26592329,574.00 
Department of Health,NHS Sheffield CCG,31/03/2019,C&M-GMS Prof Fees Prescribing,PRC DELEGATED CO-COMMISSIONING,HEALTH CARE SURGERY,26592329,190.18 
Department of Health,NHS Sheffield CCG,31/03/2019,C&M-GMS QOF Aspiration,PRC DELEGATED CO-COMMISSIONING,HEALTH CARE SURGERY,26592329,"3,944.28 "
Department of Health,NHS Sheffield CCG,31/03/2019,C&M-GMS Cost of Drugs -Prescribing,LOCAL ENHANCED SERVICES,HEELEY GREEN SURGERY,26592325,"4,723.78 "
Department of Health,NHS Sheffield CCG,31/03/2019,C&M-GMS DES Extended Hours Access,PRC DELEGATED CO-COMMISSIONING,HEELEY GREEN SURGERY,26592325,"2,796.33 "
Department of Health,NHS Sheffield CCG,31/03/2019,C&M-GMS DES Learn Dsblty Hlth Chk,PRC DELEGATED CO-COMMISSIONING,HEELEY GREEN SURGERY,26592325,"1,820.00 "
Department of Health,NHS Sheffield CCG,31/03/2019,C&M-GMS Global Sum,PRC DELEGATED CO-COMMISSIONING,HEELEY GREEN SURGERY,26592325,"42,112.49 "
Department of Health,NHS Sheffield CCG,31/03/2019,C&M-GMS MPIG Correction Factor,PRC DELEGATED CO-COMMISSIONING,HEELEY GREEN SURGERY,26592325,376.20 
Department of Health,NHS Sheffield CCG,31/03/2019,C&M-GMS PCO Seniority,PRC DELEGATED CO-COMMISSIONING,HEELEY GREEN SURGERY,26592325,772.08 
Department of Health,NHS Sheffield CCG,31/03/2019,C&M-GMS Prem Notional Rent,PRC DELEGATED CO-COMMISSIONING,HEELEY GREEN SURGERY,26592325,"3,254.17 "
Department of Health,NHS Sheffield CCG,31/03/2019,C&M-GMS Prof Fees Prescribing,PRC DELEGATED CO-COMMISSIONING,HEELEY GREEN SURGERY,26592325,"1,038.28 "
Department of Health,NHS Sheffield CCG,31/03/2019,C&M-GMS QOF Aspiration,PRC DELEGATED CO-COMMISSIONING,HEELEY GREEN SURGERY,26592325,"4,672.20 "
Department of Health,NHS Sheffield CCG,31/03/2019,Cont Care-Learning Disab(<65),CHC ADULT JOINT FUNDED,HESLEY GROUP,26485151,"(37,538.75)"
Department of Health,NHS Sheffield CCG,31/03/2019,C&M-GMS Cost of Drugs -Prescribing,LOCAL ENHANCED SERVICES,HOLLIES MEDICAL CENTRE,26592327,"1,577.41 "
Department of Health,NHS Sheffield CCG,31/03/2019,C&M-GMS DES Extended Hours Access,PRC DELEGATED CO-COMMISSIONING,HOLLIES MEDICAL CENTRE,26592327,"4,291.63 "
Department of Health,NHS Sheffield CCG,31/03/2019,C&M-GMS DES Learn Dsblty Hlth Chk,PRC DELEGATED CO-COMMISSIONING,HOLLIES MEDICAL CENTRE,26592327,980.00 
Department of Health,NHS Sheffield CCG,31/03/2019,C&M-GMS Global Sum,PRC DELEGATED CO-COMMISSIONING,HOLLIES MEDICAL CENTRE,26592327,"59,092.58 "
Department of Health,NHS Sheffield CCG,31/03/2019,C&M-GMS MPIG Correction Factor,PRC DELEGATED CO-COMMISSIONING,HOLLIES MEDICAL CENTRE,26592327,"1,452.73 "
Department of Health,NHS Sheffield CCG,31/03/2019,C&M-GMS PCO Seniority,PRC DELEGATED CO-COMMISSIONING,HOLLIES MEDICAL CENTRE,26592327,"2,272.12 "
Department of Health,NHS Sheffield CCG,31/03/2019,C&M-GMS Prem Notional Rent,PRC DELEGATED CO-COMMISSIONING,HOLLIES MEDICAL CENTRE,26592327,"3,229.17 "
Department of Health,NHS Sheffield CCG,31/03/2019,C&M-GMS Prof Fees Prescribing,PRC DELEGATED CO-COMMISSIONING,HOLLIES MEDICAL CENTRE,26592327,251.86 
Department of Health,NHS Sheffield CCG,31/03/2019,C&M-GMS QOF Aspiration,PRC DELEGATED CO-COMMISSIONING,HOLLIES MEDICAL CENTRE,26592327,"6,440.45 "
Department of Health,NHS Sheffield CCG,31/03/2019,Cont Care-Physical Disab (<65),CHC ADULT FULLY FUNDED,HORIZON CARE HOMES LTD,26289998,"25,886.92 "
Department of Health,NHS Sheffield CCG,31/03/2019,Cont Care-Physical Disab (65+),CHC ADULT FULLY FUNDED,HORIZON CARE HOMES LTD,26313906,"53,142.85 "
Department of Health,NHS Sheffield CCG,31/03/2019,Cont Care-Physical Disab (<65),CHC ADULT FULLY FUNDED,HORIZON CARE HOMES LTD,26313989,"45,941.91 "
Department of Health,NHS Sheffield CCG,31/03/2019,Clinical&Medical-Independent Sector,Mental Health Services - S117 Mental Health,IVY COTTAGE ACKTON LTD,26417133,"33,746.52 "
Department of Health,NHS Sheffield CCG,31/03/2019,C&M-PMS Contract Value,PRC DELEGATED CO-COMMISSIONING,JAUNTY SPRINGS HEALTH CENTRE,26357963,"30,492.47 "
Department of Health,NHS Sheffield CCG,31/03/2019,C&M-PMS DES Extended Hours Access,PRC DELEGATED CO-COMMISSIONING,JAUNTY SPRINGS HEALTH CENTRE,26357963,"1,725.20 "
Department of Health,NHS Sheffield CCG,31/03/2019,C&M-PMS PCO Seniority,PRC DELEGATED CO-COMMISSIONING,JAUNTY SPRINGS HEALTH CENTRE,26357963,908.57 
Department of Health,NHS Sheffield CCG,31/03/2019,C&M-PMS Prem Notional Rent,PRC DELEGATED CO-COMMISSIONING,JAUNTY SPRINGS HEALTH CENTRE,26357963,"3,208.33 "
Department of Health,NHS Sheffield CCG,31/03/2019,C&M-PMS Prem Water Rates,PRC DELEGATED CO-COMMISSIONING,JAUNTY SPRINGS HEALTH CENTRE,26357963,123.66 
Department of Health,NHS Sheffield CCG,31/03/2019,C&M-PMS QOF Aspiration,PRC DELEGATED CO-COMMISSIONING,JAUNTY SPRINGS HEALTH CENTRE,26357963,"3,861.25 "
Department of Health,NHS Sheffield CCG,31/03/2019,C&M-GMS IT Comm Servs -GP Practices,PRIMARY CARE IT,KIER BUSINESS SERVICES LTD,26392165,"103,393.20 "
Department of Health,NHS Sheffield CCG,31/03/2019,FM Computer Contracts,BUSINESS INFORMATICS,KIER BUSINESS SERVICES LTD,26392165,"36,933.60 "
Department of Health,NHS Sheffield CCG,31/03/2019,C&M-GMS IT Comm Servs -GP Practices,PRIMARY CARE IT,KIER BUSINESS SERVICES LTD,26609949,"58,000.00 "
Department of Health,NHS Sheffield CCG,31/03/2019,C&M-GMS LES Translation Fees,INTERPRETING SERVICES,LANGUAGELINE SOLUTIONS,26367933,"31,914.60 "
Department of Health,NHS Sheffield CCG,31/03/2019,C&M-GMS LES Translation Fees,INTERPRETING SERVICES,LANGUAGELINE SOLUTIONS,26367938,"40,575.07 "
Department of Health,NHS Sheffield CCG,31/03/2019,Hcare Srv Rec NHS Trust-Contract Baseline,ACUTE COMMISSIONING,LEEDS TEACHING HOSPITALS NHS TRUST,26313581,"44,753.00 "
Department of Health,NHS Sheffield CCG,31/03/2019,Cont Care-Physical Disab (<65),CHC ADULT FULLY FUNDED,LONGLEY HEALTH CARE LTD,26313952,"115,078.52 "
Department of Health,NHS Sheffield CCG,31/03/2019,Cont Care-Physical Disab (<65),CHC ADULT FULLY FUNDED,LOXLEY HEALTH CARE LTD,26313960,"74,256.37 "
Department of Health,NHS Sheffield CCG,31/03/2019,C&M-PMS Practice Transformational Support,LOCAL ENHANCED SERVICES,MANCHESTER ROAD SURGERY SHEFFIELD,26274647,"147,342.00 "
Department of Health,NHS Sheffield CCG,31/03/2019,C&M-PMS Contract Value,PRC DELEGATED CO-COMMISSIONING,MANCHESTER ROAD SURGERY SHEFFIELD,26383125,"32,546.58 "
Department of Health,NHS Sheffield CCG,31/03/2019,C&M-PMS Out of Hours Opt Outs,PRC DELEGATED CO-COMMISSIONING,MANCHESTER ROAD SURGERY SHEFFIELD,26383125,12.15 
Department of Health,NHS Sheffield CCG,31/03/2019,C&M-PMS PCO Seniority,PRC DELEGATED CO-COMMISSIONING,MANCHESTER ROAD SURGERY SHEFFIELD,26383125,"1,788.20 "
Department of Health,NHS Sheffield CCG,31/03/2019,C&M-PMS Prem Cost Rent,PRC DELEGATED CO-COMMISSIONING,MANCHESTER ROAD SURGERY SHEFFIELD,26383125,"3,472.17 "
Department of Health,NHS Sheffield CCG,31/03/2019,C&M-PMS Prem Notional Rent,PRC DELEGATED CO-COMMISSIONING,MANCHESTER ROAD SURGERY SHEFFIELD,26383125,442.92 
Department of Health,NHS Sheffield CCG,31/03/2019,C&M-PMS Prem Water Rates,PRC DELEGATED CO-COMMISSIONING,MANCHESTER ROAD SURGERY SHEFFIELD,26383125,135.91 
Department of Health,NHS Sheffield CCG,31/03/2019,C&M-PMS QOF Aspiration,PRC DELEGATED CO-COMMISSIONING,MANCHESTER ROAD SURGERY SHEFFIELD,26383125,"4,036.85 "
Department of Health,NHS Sheffield CCG,31/03/2019,Hcare Srv Rec Fdtn Trust-Non Contract,NCAS/OATS,MANCHESTER UNIVERSITY NHS FOUNDATION TRUST,26288315,"28,027.00 "
Department of Health,NHS Sheffield CCG,31/03/2019,C&M-PMS Contract Value,PRC DELEGATED CO-COMMISSIONING,MANOR & PARK GROUP PRACTICE,26383128,"76,837.91 "
Department of Health,NHS Sheffield CCG,31/03/2019,C&M-PMS DES Extended Hours Access,PRC DELEGATED CO-COMMISSIONING,MANOR & PARK GROUP PRACTICE,26383128,"4,522.01 "
Department of Health,NHS Sheffield CCG,31/03/2019,C&M-PMS Out of Hours Opt Outs,PRC DELEGATED CO-COMMISSIONING,MANOR & PARK GROUP PRACTICE,26383128,99.90 
Department of Health,NHS Sheffield CCG,31/03/2019,C&M-PMS PCO Other,PRC DELEGATED CO-COMMISSIONING,MANOR & PARK GROUP PRACTICE,26383128,"3,015.00 "
Department of Health,NHS Sheffield CCG,31/03/2019,C&M-PMS PCO Seniority,PRC DELEGATED CO-COMMISSIONING,MANOR & PARK GROUP PRACTICE,26383128,"1,469.92 "
Department of Health,NHS Sheffield CCG,31/03/2019,C&M-PMS Prem Notional Rent,PRC DELEGATED CO-COMMISSIONING,MANOR & PARK GROUP PRACTICE,26383128,"9,050.00 "
Department of Health,NHS Sheffield CCG,31/03/2019,C&M-PMS Prem Water Rates,PRC DELEGATED CO-COMMISSIONING,MANOR & PARK GROUP PRACTICE,26383128,684.14 
Department of Health,NHS Sheffield CCG,31/03/2019,C&M-PMS QOF Aspiration,PRC DELEGATED CO-COMMISSIONING,MANOR & PARK GROUP PRACTICE,26383128,"7,862.89 "
Department of Health,NHS Sheffield CCG,31/03/2019,C&M-GMS Cost of Drugs -Prescribing,LOCAL ENHANCED SERVICES,MATHEWS PRACTICE,26592336,288.52 
Department of Health,NHS Sheffield CCG,31/03/2019,C&M-GMS DES Extended Hours Access,PRC DELEGATED CO-COMMISSIONING,MATHEWS PRACTICE,26592336,"4,140.58 "
Department of Health,NHS Sheffield CCG,31/03/2019,C&M-GMS Global Sum,PRC DELEGATED CO-COMMISSIONING,MATHEWS PRACTICE,26592336,"61,772.03 "
Department of Health,NHS Sheffield CCG,31/03/2019,C&M-GMS MPIG Correction Factor,PRC DELEGATED CO-COMMISSIONING,MATHEWS PRACTICE,26592336,598.96 
Department of Health,NHS Sheffield CCG,31/03/2019,C&M-GMS PCO Seniority,PRC DELEGATED CO-COMMISSIONING,MATHEWS PRACTICE,26592336,944.90 
Department of Health,NHS Sheffield CCG,31/03/2019,C&M-GMS Prem Notional Rent,PRC DELEGATED CO-COMMISSIONING,MATHEWS PRACTICE,26592336,"8,660.42 "
Department of Health,NHS Sheffield CCG,31/03/2019,C&M-GMS Prof Fees Prescribing,PRC DELEGATED CO-COMMISSIONING,MATHEWS PRACTICE,26592336,138.78 
Department of Health,NHS Sheffield CCG,31/03/2019,C&M-GMS QOF Aspiration,PRC DELEGATED CO-COMMISSIONING,MATHEWS PRACTICE,26592336,"7,748.47 "
Department of Health,NHS Sheffield CCG,31/03/2019,C&M-PMS Contract Value,PRC DELEGATED CO-COMMISSIONING,MEADOWHEAD GROUP PRACTICE,26357965,"77,318.95 "
Department of Health,NHS Sheffield CCG,31/03/2019,C&M-PMS DES Extended Hours Access,PRC DELEGATED CO-COMMISSIONING,MEADOWHEAD GROUP PRACTICE,26357965,"4,673.05 "
Department of Health,NHS Sheffield CCG,31/03/2019,C&M-PMS Out of Hours Opt Outs,PRC DELEGATED CO-COMMISSIONING,MEADOWHEAD GROUP PRACTICE,26357965,180.76 
Department of Health,NHS Sheffield CCG,31/03/2019,C&M-PMS PCO Seniority,PRC DELEGATED CO-COMMISSIONING,MEADOWHEAD GROUP PRACTICE,26357965,"4,026.07 "
Department of Health,NHS Sheffield CCG,31/03/2019,C&M-PMS Prem Cost Rent,PRC DELEGATED CO-COMMISSIONING,MEADOWHEAD GROUP PRACTICE,26357965,"3,647.42 "
Department of Health,NHS Sheffield CCG,31/03/2019,C&M-PMS Prem Notional Rent,PRC DELEGATED CO-COMMISSIONING,MEADOWHEAD GROUP PRACTICE,26357965,"3,358.33 "
Department of Health,NHS Sheffield CCG,31/03/2019,C&M-PMS QOF Aspiration,PRC DELEGATED CO-COMMISSIONING,MEADOWHEAD GROUP PRACTICE,26357965,"9,134.83 "
Department of Health,NHS Sheffield CCG,31/03/2019,C&M-GMS Cost of Drugs -Prescribing,LOCAL ENHANCED SERVICES,MEDICAL CENTRE CRYSTAL PEAKS,26617996,"1,271.53 "
Department of Health,NHS Sheffield CCG,31/03/2019,C&M-GMS DES Extended Hours Access,PRC DELEGATED CO-COMMISSIONING,MEDICAL CENTRE CRYSTAL PEAKS,26617996,"3,135.00 "
Department of Health,NHS Sheffield CCG,31/03/2019,C&M-GMS Global Sum,PRC DELEGATED CO-COMMISSIONING,MEDICAL CENTRE CRYSTAL PEAKS,26617996,"45,743.63 "
Department of Health,NHS Sheffield CCG,31/03/2019,C&M-GMS MPIG Correction Factor,PRC DELEGATED CO-COMMISSIONING,MEDICAL CENTRE CRYSTAL PEAKS,26617996,"1,131.34 "
Department of Health,NHS Sheffield CCG,31/03/2019,C&M-GMS PCO Locum Sickness,PRC DELEGATED CO-COMMISSIONING,MEDICAL CENTRE CRYSTAL PEAKS,26617996,"11,659.15 "
Department of Health,NHS Sheffield CCG,31/03/2019,C&M-GMS PCO Seniority,PRC DELEGATED CO-COMMISSIONING,MEDICAL CENTRE CRYSTAL PEAKS,26617996,"2,607.86 "
Department of Health,NHS Sheffield CCG,31/03/2019,C&M-GMS Prem Notional Rent,PRC DELEGATED CO-COMMISSIONING,MEDICAL CENTRE CRYSTAL PEAKS,26617996,270.00 
Department of Health,NHS Sheffield CCG,31/03/2019,C&M-GMS Prof Fees Prescribing,PRC DELEGATED CO-COMMISSIONING,MEDICAL CENTRE CRYSTAL PEAKS,26617996,483.16 
Department of Health,NHS Sheffield CCG,31/03/2019,C&M-GMS QOF Aspiration,PRC DELEGATED CO-COMMISSIONING,MEDICAL CENTRE CRYSTAL PEAKS,26617996,"6,363.66 "
Department of Health,NHS Sheffield CCG,31/03/2019,Other Gen Supplies & Srv,BEREAVEMENT SERVICE,MID YORKSHIRE HOSPITALS NHS TRUST,26635344,"470,000.00 "
Department of Health,NHS Sheffield CCG,31/03/2019,C&M-GMS Cost of Drugs -Prescribing,LOCAL ENHANCED SERVICES,MILL ROAD SURGERY SHEFFIELD,26592339,"1,609.09 "
Department of Health,NHS Sheffield CCG,31/03/2019,C&M-GMS DES Extended Hours Access,PRC DELEGATED CO-COMMISSIONING,MILL ROAD SURGERY SHEFFIELD,26592339,"2,500.88 "
Department of Health,NHS Sheffield CCG,31/03/2019,C&M-GMS Global Sum,PRC DELEGATED CO-COMMISSIONING,MILL ROAD SURGERY SHEFFIELD,26592339,"40,535.85 "
Department of Health,NHS Sheffield CCG,31/03/2019,C&M-GMS MPIG Correction Factor,PRC DELEGATED CO-COMMISSIONING,MILL ROAD SURGERY SHEFFIELD,26592339,122.04 
Department of Health,NHS Sheffield CCG,31/03/2019,C&M-GMS PCO Seniority,PRC DELEGATED CO-COMMISSIONING,MILL ROAD SURGERY SHEFFIELD,26592339,463.78 
Department of Health,NHS Sheffield CCG,31/03/2019,C&M-GMS Prem Notional Rent,PRC DELEGATED CO-COMMISSIONING,MILL ROAD SURGERY SHEFFIELD,26592339,"4,593.33 "
Department of Health,NHS Sheffield CCG,31/03/2019,C&M-GMS Prof Fees Prescribing,PRC DELEGATED CO-COMMISSIONING,MILL ROAD SURGERY SHEFFIELD,26592339,192.75 
Department of Health,NHS Sheffield CCG,31/03/2019,C&M-GMS QOF Aspiration,PRC DELEGATED CO-COMMISSIONING,MILL ROAD SURGERY SHEFFIELD,26592339,"4,960.33 "
Department of Health,NHS Sheffield CCG,31/03/2019,Clinical&Medical-Independent Sector,Mental Health Services - S117 Mental Health,MOORVILLE RESIDENTIAL,26288775,"8,124.30 "
Department of Health,NHS Sheffield CCG,31/03/2019,Cont Care-Learning Disab(<65),CHC ADULT FULLY FUNDED,MOORVILLE RESIDENTIAL,26288775,"21,217.78 "
Department of Health,NHS Sheffield CCG,31/03/2019,Cont Care-Mental Health (<65),CHC ADULT JOINT FUNDED,MOORVILLE RESIDENTIAL,26288775,491.57 
Department of Health,NHS Sheffield CCG,31/03/2019,C&M-PMS Contract Value,PRC DELEGATED CO-COMMISSIONING,MOSBOROUGH HEALTH CENTRE,26357967,"48,411.27 "
Department of Health,NHS Sheffield CCG,31/03/2019,C&M-PMS DES Extended Hours Access,PRC DELEGATED CO-COMMISSIONING,MOSBOROUGH HEALTH CENTRE,26357967,"3,129.78 "
Department of Health,NHS Sheffield CCG,31/03/2019,C&M-PMS PCO Seniority,PRC DELEGATED CO-COMMISSIONING,MOSBOROUGH HEALTH CENTRE,26357967,"1,906.36 "
Department of Health,NHS Sheffield CCG,31/03/2019,C&M-PMS Prem Notional Rent,PRC DELEGATED CO-COMMISSIONING,MOSBOROUGH HEALTH CENTRE,26357967,"4,091.67 "
Department of Health,NHS Sheffield CCG,31/03/2019,C&M-PMS Prem Water Rates,PRC DELEGATED CO-COMMISSIONING,MOSBOROUGH HEALTH CENTRE,26357967,83.20 
Department of Health,NHS Sheffield CCG,31/03/2019,C&M-PMS QOF Aspiration,PRC DELEGATED CO-COMMISSIONING,MOSBOROUGH HEALTH CENTRE,26357967,"5,763.82 "
Department of Health,NHS Sheffield CCG,31/03/2019,C&M-PMS Contract Value,PRC DELEGATED CO-COMMISSIONING,NETHERGREEN SURGERY,26357969,"63,373.08 "
Department of Health,NHS Sheffield CCG,31/03/2019,C&M-PMS DES Extended Hours Access,PRC DELEGATED CO-COMMISSIONING,NETHERGREEN SURGERY,26357969,"4,410.38 "
Department of Health,NHS Sheffield CCG,31/03/2019,C&M-PMS Out of Hours Opt Outs,PRC DELEGATED CO-COMMISSIONING,NETHERGREEN SURGERY,26357969,1.84 
Department of Health,NHS Sheffield CCG,31/03/2019,C&M-PMS PCO Seniority,PRC DELEGATED CO-COMMISSIONING,NETHERGREEN SURGERY,26357969,"3,745.78 "
Department of Health,NHS Sheffield CCG,31/03/2019,C&M-PMS Prem Cost Rent,PRC DELEGATED CO-COMMISSIONING,NETHERGREEN SURGERY,26357969,"5,057.33 "
Department of Health,NHS Sheffield CCG,31/03/2019,C&M-PMS QOF Aspiration,PRC DELEGATED CO-COMMISSIONING,NETHERGREEN SURGERY,26357969,"6,267.38 "
Department of Health,NHS Sheffield CCG,31/03/2019,Other Gen Supplies & Srv,COMMISSIONING,NHS GREATER HUDDERSFIELD CCG,26248592,"(30,035.00)"
Department of Health,NHS Sheffield CCG,31/03/2019,Other Gen Supplies & Srv,COMMISSIONING,NHS GREATER HUDDERSFIELD CCG,26248636,"30,035.00 "
Department of Health,NHS Sheffield CCG,31/03/2019,Charges from CSU,BUSINESS INFORMATICS,NHS NORTH OF ENGLAND CSU,26635256,"27,376.00 "
Department of Health,NHS Sheffield CCG,31/03/2019,C&M-GMS Cost of Drugs -Prescribing,LOCAL ENHANCED SERVICES,NORFOLK PARK HEALTH CENTRE,26592344,"1,536.82 "
Department of Health,NHS Sheffield CCG,31/03/2019,C&M-GMS Global Sum,PRC DELEGATED CO-COMMISSIONING,NORFOLK PARK HEALTH CENTRE,26592344,"37,609.51 "
Department of Health,NHS Sheffield CCG,31/03/2019,C&M-GMS MPIG Correction Factor,PRC DELEGATED CO-COMMISSIONING,NORFOLK PARK HEALTH CENTRE,26592344,924.61 
Department of Health,NHS Sheffield CCG,31/03/2019,C&M-GMS PCO Seniority,PRC DELEGATED CO-COMMISSIONING,NORFOLK PARK HEALTH CENTRE,26592344,"2,695.44 "
Department of Health,NHS Sheffield CCG,31/03/2019,C&M-GMS Prem Healthcentre Rent,PRC DELEGATED CO-COMMISSIONING,NORFOLK PARK HEALTH CENTRE,26592344,"24,044.86 "
Department of Health,NHS Sheffield CCG,31/03/2019,C&M-GMS Prof Fees Prescribing,PRC DELEGATED CO-COMMISSIONING,NORFOLK PARK HEALTH CENTRE,26592344,215.88 
Department of Health,NHS Sheffield CCG,31/03/2019,C&M-GMS QOF Aspiration,PRC DELEGATED CO-COMMISSIONING,NORFOLK PARK HEALTH CENTRE,26592344,"3,810.65 "
Department of Health,NHS Sheffield CCG,31/03/2019,Hcare Srv Rec Fdtn Trust-Contract Baseline,MENTAL HEALTH CONTRACTS,NORTHUMBERLAND TYNE AND WEAR NHS FOUNDATION TRUST,26214011,"72,402.60 "
Department of Health,NHS Sheffield CCG,31/03/2019,Hcare Srv Rec Fdtn Trust-Contract Baseline,MENTAL HEALTH CONTRACTS,NORTHUMBERLAND TYNE AND WEAR NHS FOUNDATION TRUST,26214031,"74,816.02 "
Department of Health,NHS Sheffield CCG,31/03/2019,Hcare Srv Rec Fdtn Trust-Contract Baseline,MENTAL HEALTH CONTRACTS,NORTHUMBERLAND TYNE AND WEAR NHS FOUNDATION TRUST,26214041,"72,402.60 "
Department of Health,NHS Sheffield CCG,31/03/2019,Hcare Srv Rec Fdtn Trust-Contract Baseline,MENTAL HEALTH CONTRACTS,NORTHUMBERLAND TYNE AND WEAR NHS FOUNDATION TRUST,26214046,"74,816.02 "
Department of Health,NHS Sheffield CCG,31/03/2019,Hcare Srv Rec Fdtn Trust-Contract Baseline,MENTAL HEALTH CONTRACTS,NORTHUMBERLAND TYNE AND WEAR NHS FOUNDATION TRUST,26214047,"74,816.02 "
Department of Health,NHS Sheffield CCG,31/03/2019,Hcare Srv Rec Fdtn Trust-Contract Baseline,MENTAL HEALTH CONTRACTS,NORTHUMBERLAND TYNE AND WEAR NHS FOUNDATION TRUST,26214175,"67,575.76 "
Department of Health,NHS Sheffield CCG,31/03/2019,Hcare Srv Rec Fdtn Trust-Contract Baseline,MENTAL HEALTH CONTRACTS,NORTHUMBERLAND TYNE AND WEAR NHS FOUNDATION TRUST,26214176,"(30,535.74)"
Department of Health,NHS Sheffield CCG,31/03/2019,C&M-GMS Cost of Drugs -Prescribing,LOCAL ENHANCED SERVICES,NORWOOD MEDICAL CENTRE SHEFFIELD,26592347,768.49 
Department of Health,NHS Sheffield CCG,31/03/2019,C&M-GMS DES Extended Hours Access,PRC DELEGATED CO-COMMISSIONING,NORWOOD MEDICAL CENTRE SHEFFIELD,26592347,"3,785.75 "
Department of Health,NHS Sheffield CCG,31/03/2019,C&M-GMS Global Sum,PRC DELEGATED CO-COMMISSIONING,NORWOOD MEDICAL CENTRE SHEFFIELD,26592347,"64,358.66 "
Department of Health,NHS Sheffield CCG,31/03/2019,C&M-GMS PCO Seniority,PRC DELEGATED CO-COMMISSIONING,NORWOOD MEDICAL CENTRE SHEFFIELD,26592347,"2,904.05 "
Department of Health,NHS Sheffield CCG,31/03/2019,C&M-GMS Prem Notional Rent,PRC DELEGATED CO-COMMISSIONING,NORWOOD MEDICAL CENTRE SHEFFIELD,26592347,"5,187.50 "
Department of Health,NHS Sheffield CCG,31/03/2019,C&M-GMS Prof Fees Prescribing,PRC DELEGATED CO-COMMISSIONING,NORWOOD MEDICAL CENTRE SHEFFIELD,26592347,231.30 
Department of Health,NHS Sheffield CCG,31/03/2019,C&M-GMS QOF Aspiration,PRC DELEGATED CO-COMMISSIONING,NORWOOD MEDICAL CENTRE SHEFFIELD,26592347,"8,350.37 "
Department of Health,NHS Sheffield CCG,31/03/2019,Hcare Srv Rec NHS Trust-Contract Baseline,ACUTE COMMISSIONING,NOTTINGHAM UNIVERSITY HOSPITALS NHS TRUST,26313937,"28,040.00 "
Department of Health,NHS Sheffield CCG,31/03/2019,Clinical&Medical-Independent Sector,ACUTE COMMISSIONING,ONEHEALTH GROUP,26392122,"74,162.00 "
Department of Health,NHS Sheffield CCG,31/03/2019,C&M-GMS Cost of Drugs -Dispensing,LOCAL ENHANCED SERVICES,OUGHTIBRIDGE SURGERY,26592350,"(15,252.74)"
Department of Health,NHS Sheffield CCG,31/03/2019,C&M-GMS GP Statutory Levy,PRC DELEGATED CO-COMMISSIONING,OUGHTIBRIDGE SURGERY,26592350,(174.84)
Department of Health,NHS Sheffield CCG,31/03/2019,C&M-GMS PrscChrgsCll&RmttdbyGPCntra,PRC DELEGATED CO-COMMISSIONING,OUGHTIBRIDGE SURGERY,26592350,(704.00)
Department of Health,NHS Sheffield CCG,31/03/2019,C&M-GMS Voluntary Levy,PRC DELEGATED CO-COMMISSIONING,OUGHTIBRIDGE SURGERY,26592350,(29.14)
Department of Health,NHS Sheffield CCG,31/03/2019,C&M-GMS Cost of Drugs -Dispensing,LOCAL ENHANCED SERVICES,OUGHTIBRIDGE SURGERY,26592351,"25,434.36 "
Department of Health,NHS Sheffield CCG,31/03/2019,C&M-GMS Global Sum,PRC DELEGATED CO-COMMISSIONING,OUGHTIBRIDGE SURGERY,26592351,"42,801.25 "
Department of Health,NHS Sheffield CCG,31/03/2019,C&M-GMS PCO Locum Adop/Pat/Mat,PRC DELEGATED CO-COMMISSIONING,OUGHTIBRIDGE SURGERY,26592351,"8,921.52 "
Department of Health,NHS Sheffield CCG,31/03/2019,C&M-GMS PCO Seniority,PRC DELEGATED CO-COMMISSIONING,OUGHTIBRIDGE SURGERY,26592351,"1,385.17 "
Department of Health,NHS Sheffield CCG,31/03/2019,C&M-GMS Prem Notional Rent,PRC DELEGATED CO-COMMISSIONING,OUGHTIBRIDGE SURGERY,26592351,"3,957.33 "
Department of Health,NHS Sheffield CCG,31/03/2019,C&M-GMS Prof Fees Dispensing,PRC DELEGATED CO-COMMISSIONING,OUGHTIBRIDGE SURGERY,26592351,"5,079.58 "
Department of Health,NHS Sheffield CCG,31/03/2019,C&M-GMS PrscrptnChrgsColl&RmttdbyGP,LOCAL ENHANCED SERVICES,OUGHTIBRIDGE SURGERY,26592351,704.00 
Department of Health,NHS Sheffield CCG,31/03/2019,C&M-GMS QOF Aspiration,PRC DELEGATED CO-COMMISSIONING,OUGHTIBRIDGE SURGERY,26592351,"4,454.94 "
Department of Health,NHS Sheffield CCG,31/03/2019,C&M-PMS Contract Value,PRC DELEGATED CO-COMMISSIONING,OWLTHORPE MEDICAL CENTRE,26357971,"33,565.48 "
Department of Health,NHS Sheffield CCG,31/03/2019,C&M-PMS DES Extended Hours Access,PRC DELEGATED CO-COMMISSIONING,OWLTHORPE MEDICAL CENTRE,26357971,"2,176.93 "
Department of Health,NHS Sheffield CCG,31/03/2019,C&M-PMS Out of Hours Opt Outs,PRC DELEGATED CO-COMMISSIONING,OWLTHORPE MEDICAL CENTRE,26357971,25.29 
Department of Health,NHS Sheffield CCG,31/03/2019,C&M-PMS Prem Actual Rent,PRC DELEGATED CO-COMMISSIONING,OWLTHORPE MEDICAL CENTRE,26357971,"7,539.58 "
Department of Health,NHS Sheffield CCG,31/03/2019,C&M-PMS QOF Aspiration,PRC DELEGATED CO-COMMISSIONING,OWLTHORPE MEDICAL CENTRE,26357971,"4,022.05 "
Department of Health,NHS Sheffield CCG,31/03/2019,C&M-PMS Contract Value,PRC DELEGATED CO-COMMISSIONING,PAGE HALL MEDICAL CENTRE,26357973,"57,376.24 "
Department of Health,NHS Sheffield CCG,31/03/2019,C&M-PMS DES Extended Hours Access,PRC DELEGATED CO-COMMISSIONING,PAGE HALL MEDICAL CENTRE,26357973,"3,602.40 "
Department of Health,NHS Sheffield CCG,31/03/2019,C&M-PMS Out of Hours Opt Outs,PRC DELEGATED CO-COMMISSIONING,PAGE HALL MEDICAL CENTRE,26357973,34.35 
Department of Health,NHS Sheffield CCG,31/03/2019,C&M-PMS PCO Seniority,PRC DELEGATED CO-COMMISSIONING,PAGE HALL MEDICAL CENTRE,26357973,"2,285.80 "
Department of Health,NHS Sheffield CCG,31/03/2019,C&M-PMS Prem Notional Rent,PRC DELEGATED CO-COMMISSIONING,PAGE HALL MEDICAL CENTRE,26357973,"4,833.33 "
Department of Health,NHS Sheffield CCG,31/03/2019,C&M-PMS Prem Water Rates,PRC DELEGATED CO-COMMISSIONING,PAGE HALL MEDICAL CENTRE,26357973,165.46 
Department of Health,NHS Sheffield CCG,31/03/2019,C&M-PMS QOF Aspiration,PRC DELEGATED CO-COMMISSIONING,PAGE HALL MEDICAL CENTRE,26357973,"4,906.36 "
Department of Health,NHS Sheffield CCG,31/03/2019,C&M-PMS Practice Transformational Support,LOCAL ENHANCED SERVICES,PITSMOOR SURGERY,26274656,"74,000.00 "
Department of Health,NHS Sheffield CCG,31/03/2019,C&M-PMS Practice Transformational Support,LOCAL ENHANCED SERVICES,PITSMOOR SURGERY,26274666,"66,000.00 "
Department of Health,NHS Sheffield CCG,31/03/2019,C&M-PMS Contract Value,PRC DELEGATED CO-COMMISSIONING,PITSMOOR SURGERY,26357975,"77,650.22 "
Department of Health,NHS Sheffield CCG,31/03/2019,C&M-PMS DES Extended Hours Access,PRC DELEGATED CO-COMMISSIONING,PITSMOOR SURGERY,26357975,"4,465.95 "
Department of Health,NHS Sheffield CCG,31/03/2019,C&M-PMS Out of Hours Opt Outs,PRC DELEGATED CO-COMMISSIONING,PITSMOOR SURGERY,26357975,80.00 
Department of Health,NHS Sheffield CCG,31/03/2019,C&M-PMS PCO Locum Adop/Pat/Mat,PRC DELEGATED CO-COMMISSIONING,PITSMOOR SURGERY,26357975,"3,583.34 "
Department of Health,NHS Sheffield CCG,31/03/2019,C&M-PMS Prem Notional Rent,PRC DELEGATED CO-COMMISSIONING,PITSMOOR SURGERY,26357975,"9,650.00 "
Department of Health,NHS Sheffield CCG,31/03/2019,C&M-PMS QOF Aspiration,PRC DELEGATED CO-COMMISSIONING,PITSMOOR SURGERY,26357975,"7,079.26 "
Department of Health,NHS Sheffield CCG,31/03/2019,C&M-PMS Contract Value,PRC DELEGATED CO-COMMISSIONING,PORTER BROOK MEDICAL CENTRE,26357976,"(9,996.50)"
Department of Health,NHS Sheffield CCG,31/03/2019,C&M-PMS GP Statutory Levy,PRC DELEGATED CO-COMMISSIONING,PORTER BROOK MEDICAL CENTRE,26357976,"(1,767.60)"
Department of Health,NHS Sheffield CCG,31/03/2019,C&M-PMS Out of Hours Opt Outs,PRC DELEGATED CO-COMMISSIONING,PORTER BROOK MEDICAL CENTRE,26357976,"(8,269.97)"
Department of Health,NHS Sheffield CCG,31/03/2019,C&M-PMS Voluntary Levy,PRC DELEGATED CO-COMMISSIONING,PORTER BROOK MEDICAL CENTRE,26357976,(294.60)
Department of Health,NHS Sheffield CCG,31/03/2019,C&M-PMS Contract Value,PRC DELEGATED CO-COMMISSIONING,PORTER BROOK MEDICAL CENTRE,26357977,"175,852.18 "
Department of Health,NHS Sheffield CCG,31/03/2019,C&M-PMS DES Extended Hours Access,PRC DELEGATED CO-COMMISSIONING,PORTER BROOK MEDICAL CENTRE,26357977,"13,684.28 "
Department of Health,NHS Sheffield CCG,31/03/2019,C&M-PMS Out of Hours Opt Outs,PRC DELEGATED CO-COMMISSIONING,PORTER BROOK MEDICAL CENTRE,26357977,491.58 
Department of Health,NHS Sheffield CCG,31/03/2019,C&M-PMS PCO Seniority,PRC DELEGATED CO-COMMISSIONING,PORTER BROOK MEDICAL CENTRE,26357977,"7,437.80 "
Department of Health,NHS Sheffield CCG,31/03/2019,C&M-PMS Prem Actual Rent,PRC DELEGATED CO-COMMISSIONING,PORTER BROOK MEDICAL CENTRE,26357977,"1,333.33 "
Department of Health,NHS Sheffield CCG,31/03/2019,C&M-PMS Prem Notional Rent,PRC DELEGATED CO-COMMISSIONING,PORTER BROOK MEDICAL CENTRE,26357977,"9,666.67 "
Department of Health,NHS Sheffield CCG,31/03/2019,C&M-PMS QOF Aspiration,PRC DELEGATED CO-COMMISSIONING,PORTER BROOK MEDICAL CENTRE,26357977,"8,562.06 "
Department of Health,NHS Sheffield CCG,31/03/2019,C&M-APMS DES Extended Hours Access,GP FORWARD VIEW,PRIMARY CARE SHEFFIELD LTD,26214160,"291,333.34 "
Department of Health,NHS Sheffield CCG,31/03/2019,C&M-GMS Practice Transformational Support,LOCAL ENHANCED SERVICES,PRIMARY CARE SHEFFIELD LTD,26313844,"55,500.00 "
Department of Health,NHS Sheffield CCG,31/03/2019,C&M-OES Childrens Schemes,LOCAL ENHANCED SERVICES,PRIMARY EYECARE SERVICES LTD,26525618,"1,450.00 "
Department of Health,NHS Sheffield CCG,31/03/2019,C&M-OES Glaucoma,LOCAL ENHANCED SERVICES,PRIMARY EYECARE SERVICES LTD,26525618,630.00 
Department of Health,NHS Sheffield CCG,31/03/2019,C&M-OES Intra-ocular Ocular Hypertn,LOCAL ENHANCED SERVICES,PRIMARY EYECARE SERVICES LTD,26525618,340.00 
Department of Health,NHS Sheffield CCG,31/03/2019,C&M-OES PEARS,LOCAL ENHANCED SERVICES,PRIMARY EYECARE SERVICES LTD,26525618,"24,311.50 "
Department of Health,NHS Sheffield CCG,31/03/2019,C&M-PMS Contract Value,PRC DELEGATED CO-COMMISSIONING,RICHMOND MEDICAL CENTRE,26357979,"66,305.86 "
Department of Health,NHS Sheffield CCG,31/03/2019,C&M-PMS DES Extended Hours Access,PRC DELEGATED CO-COMMISSIONING,RICHMOND MEDICAL CENTRE,26357979,"4,182.85 "
Department of Health,NHS Sheffield CCG,31/03/2019,C&M-PMS Out of Hours Opt Outs,PRC DELEGATED CO-COMMISSIONING,RICHMOND MEDICAL CENTRE,26357979,4.94 
Department of Health,NHS Sheffield CCG,31/03/2019,C&M-PMS PCO Seniority,PRC DELEGATED CO-COMMISSIONING,RICHMOND MEDICAL CENTRE,26357979,"2,201.87 "
Department of Health,NHS Sheffield CCG,31/03/2019,C&M-PMS Prem Notional Rent,PRC DELEGATED CO-COMMISSIONING,RICHMOND MEDICAL CENTRE,26357979,"4,731.00 "
Department of Health,NHS Sheffield CCG,31/03/2019,C&M-PMS QOF Aspiration,PRC DELEGATED CO-COMMISSIONING,RICHMOND MEDICAL CENTRE,26357979,"8,188.48 "
Department of Health,NHS Sheffield CCG,31/03/2019,Cont Care-Funded Nursing Care Allow,FUNDED NURSING CARE,ROSEBERRY CARE CENTRES,26288795,"34,892.16 "
Department of Health,NHS Sheffield CCG,31/03/2019,Cont Care-Physical Disab (<65),CHC ADULT FULLY FUNDED,ROSEBERRY CARE CENTRES,26313944,"50,757.62 "
Department of Health,NHS Sheffield CCG,31/03/2019,Cont Care-Physical Disab (<65),CHC ADULT FULLY FUNDED,ROSEBERRY CARE CENTRES,26313950,"26,344.42 "
Department of Health,NHS Sheffield CCG,31/03/2019,Miscellaneous Expenditure (L9),BEREAVEMENT SERVICE,ROTHERHAM DONCASTER & SOUTH HUMBER MENTAL HEALTH NHS FOUNDATION TRUST,26313687,"129,000.00 "
Department of Health,NHS Sheffield CCG,31/03/2019,Clinical&Medical-Serv Recd-F Trsts,Mental Health Services - S117 Mental Health,ROTHERHAM DONCASTER & SOUTH HUMBER MENTAL HEALTH NHS FOUNDATION TRUST,26653607,"57,003.76 "
Department of Health,NHS Sheffield CCG,31/03/2019,Hcare Srv Rec Fdtn Trust-Contract Baseline,ACUTE COMMISSIONING,ROTHERHAM NHS FOUNDATION TRUST,26274360,"428,814.00 "
Department of Health,NHS Sheffield CCG,31/03/2019,Miscellaneous Expenditure (L9),BEREAVEMENT SERVICE,ROTHERHAM NHS FOUNDATION TRUST,26392178,"206,000.00 "
Department of Health,NHS Sheffield CCG,31/03/2019,Other Gen Supplies & Srv,CLINICAL LEADS,ROTHERHAM NHS FOUNDATION TRUST,26653626,"(27,000.00)"
Department of Health,NHS Sheffield CCG,31/03/2019,C&M-PMS Contract Value,PRC DELEGATED CO-COMMISSIONING,RUSTLINGS ROAD MEDICAL CENTRE,26357983,"27,604.62 "
Department of Health,NHS Sheffield CCG,31/03/2019,C&M-PMS PCO Seniority,PRC DELEGATED CO-COMMISSIONING,RUSTLINGS ROAD MEDICAL CENTRE,26357983,"1,780.70 "
Department of Health,NHS Sheffield CCG,31/03/2019,C&M-PMS Prem Notional Rent,PRC DELEGATED CO-COMMISSIONING,RUSTLINGS ROAD MEDICAL CENTRE,26357983,"2,902.92 "
Department of Health,NHS Sheffield CCG,31/03/2019,C&M-PMS QOF Aspiration,PRC DELEGATED CO-COMMISSIONING,RUSTLINGS ROAD MEDICAL CENTRE,26357983,"2,389.45 "
Department of Health,NHS Sheffield CCG,31/03/2019,Cont Care-Physical Disab (<65),CHC ADULT FULLY FUNDED,SEVEN HILLS NURSING HOME,26290023,"30,692.14 "
Department of Health,NHS Sheffield CCG,31/03/2019,C&M-GMS Cost of Drugs -Prescribing,LOCAL ENHANCED SERVICES,SHARROW LANE MEDICAL CENTRE,26592356,793.06 
Department of Health,NHS Sheffield CCG,31/03/2019,C&M-GMS DES Extended Hours Access,PRC DELEGATED CO-COMMISSIONING,SHARROW LANE MEDICAL CENTRE,26592356,"1,844.43 "
Department of Health,NHS Sheffield CCG,31/03/2019,C&M-GMS Global Sum,PRC DELEGATED CO-COMMISSIONING,SHARROW LANE MEDICAL CENTRE,26592356,"23,195.59 "
Department of Health,NHS Sheffield CCG,31/03/2019,C&M-GMS MPIG Correction Factor,PRC DELEGATED CO-COMMISSIONING,SHARROW LANE MEDICAL CENTRE,26592356,"1,960.32 "
Department of Health,NHS Sheffield CCG,31/03/2019,C&M-GMS PCO Seniority,PRC DELEGATED CO-COMMISSIONING,SHARROW LANE MEDICAL CENTRE,26592356,426.50 
Department of Health,NHS Sheffield CCG,31/03/2019,C&M-GMS Prem Notional Rent,PRC DELEGATED CO-COMMISSIONING,SHARROW LANE MEDICAL CENTRE,26592356,"2,741.66 "
Department of Health,NHS Sheffield CCG,31/03/2019,C&M-GMS Prof Fees Prescribing,PRC DELEGATED CO-COMMISSIONING,SHARROW LANE MEDICAL CENTRE,26592356,156.77 
Department of Health,NHS Sheffield CCG,31/03/2019,C&M-GMS QOF Aspiration,PRC DELEGATED CO-COMMISSIONING,SHARROW LANE MEDICAL CENTRE,26592356,"2,521.19 "
Department of Health,NHS Sheffield CCG,31/03/2019,Hcare Srv Rec Fdtn Trust-CQUIN,ACUTE CHILDRENS SERVICES,SHEFFIELD CHILDRENS NHS FOUNDATION TRUST,26214208,"38,460.00 "
Department of Health,NHS Sheffield CCG,31/03/2019,Hcare Srv Rec Fdtn Trust-CQUIN,COMMUNITY SERVICES,SHEFFIELD CHILDRENS NHS FOUNDATION TRUST,26214208,"3,550.00 "
Department of Health,NHS Sheffield CCG,31/03/2019,Hcare Srv Rec Fdtn Trust-Contract Baseline,ACUTE CHILDRENS SERVICES,SHEFFIELD CHILDRENS NHS FOUNDATION TRUST,26214208,"(39,184.50)"
Department of Health,NHS Sheffield CCG,31/03/2019,Hcare Srv Rec Fdtn Trust-Contract Baseline,CHILD AND ADOLESCENT MENTAL HEALTH,SHEFFIELD CHILDRENS NHS FOUNDATION TRUST,26214208,"27,244.00 "
Department of Health,NHS Sheffield CCG,31/03/2019,Hcare Srv Rec Fdtn Trust-Contract Baseline,COMMUNITY SERVICES,SHEFFIELD CHILDRENS NHS FOUNDATION TRUST,26214208,"(17,364.00)"
Department of Health,NHS Sheffield CCG,31/03/2019,Hcare Srv Rec Fdtn Trust-Contract Baseline,HIGH COST DRUGS,SHEFFIELD CHILDRENS NHS FOUNDATION TRUST,26214208,"23,097.00 "
Department of Health,NHS Sheffield CCG,31/03/2019,Hcare Srv Rec Fdtn Trust-Contract Baseline,MENTAL HEALTH CONTRACTS,SHEFFIELD CHILDRENS NHS FOUNDATION TRUST,26214208,"25,424.00 "
Department of Health,NHS Sheffield CCG,31/03/2019,Hcare Srv Rec Fdtn Trust-Contract Baseline,PLANNED CARE,SHEFFIELD CHILDRENS NHS FOUNDATION TRUST,26214208,"99,880.00 "
Department of Health,NHS Sheffield CCG,31/03/2019,Hcare Srv Rec Fdtn Trust-Contract Baseline,SAFEGUARDING,SHEFFIELD CHILDRENS NHS FOUNDATION TRUST,26214208,"(1,021.00)"
Department of Health,NHS Sheffield CCG,31/03/2019,Hcare Srv Rec Fdtn Trust-Contract Baseline,URGENT CARE,SHEFFIELD CHILDRENS NHS FOUNDATION TRUST,26214208,"75,550.00 "
Department of Health,NHS Sheffield CCG,31/03/2019,Other Gen Supplies & Srv,BEREAVEMENT SERVICE,SHEFFIELD CHILDRENS NHS FOUNDATION TRUST,26604729,"160,000.00 "
Department of Health,NHS Sheffield CCG,31/03/2019,Hcare Srv Rec Fdtn Trust-Contract Baseline,ACUTE CHILDRENS SERVICES,SHEFFIELD CHILDRENS NHS FOUNDATION TRUST,26653683,"3,086,899.79 "
Department of Health,NHS Sheffield CCG,31/03/2019,Clinical&Medical-Othe Public Sector,COMMISSIONING - NON ACUTE,SHEFFIELD CITY COUNCIL,26313849,"21,832.00 "
Department of Health,NHS Sheffield CCG,31/03/2019,Clinical&Medical-Othe Public Sector,COMMUNITY SERVICES,SHEFFIELD CITY COUNCIL,26313849,"160,415.00 "
Department of Health,NHS Sheffield CCG,31/03/2019,Clinical&Medical-Othe Public Sector,MENTAL HEALTH SERVICES - COLLABORATIVE COMMISSIONING,SHEFFIELD CITY COUNCIL,26313849,"14,169.00 "
Department of Health,NHS Sheffield CCG,31/03/2019,Clinical&Medical-Othe Public Sector,SAFEGUARDING,SHEFFIELD CITY COUNCIL,26313849,"15,324.00 "
Department of Health,NHS Sheffield CCG,31/03/2019,Soc Care-Joint H&C Teams/Working,COMMUNITY SERVICES,SHEFFIELD CITY COUNCIL,26313849,"151,448.00 "
Department of Health,NHS Sheffield CCG,31/03/2019,Soc Care-Other Soc Care,COMMISSIONING - NON ACUTE,SHEFFIELD CITY COUNCIL,26313849,"1,467,750.00 "
Department of Health,NHS Sheffield CCG,31/03/2019,Soc Care-Support Prim Care,COMMUNITY SERVICES,SHEFFIELD CITY COUNCIL,26313849,"58,000.00 "
Department of Health,NHS Sheffield CCG,31/03/2019,Cont Care- Prior Year Payments,CHC ADULT FULLY FUNDED,SHEFFIELD CITY COUNCIL,26314118,"37,003.11 "
Department of Health,NHS Sheffield CCG,31/03/2019,Cont Care- Children,CHC CHILDREN,SHEFFIELD CITY COUNCIL,26314128,"34,568.77 "
Department of Health,NHS Sheffield CCG,31/03/2019,Cont Care-Physical Disab (65+),CHC ADULT FULLY FUNDED,SHEFFIELD CITY COUNCIL,26392146,"869,436.87 "
Department of Health,NHS Sheffield CCG,31/03/2019,Soc Care-Other Soc Care,COMMISSIONING - NON ACUTE,SHEFFIELD CITY COUNCIL,26452329,"2,000,000.00 "
Department of Health,NHS Sheffield CCG,31/03/2019,Health Promotion,COMMISSIONING,SHEFFIELD CITY COUNCIL,26544681,"52,948.00 "
Department of Health,NHS Sheffield CCG,31/03/2019,Clinical&Medical-Othe Public Sector,MENTAL HEALTH SERVICES - COLLABORATIVE COMMISSIONING,SHEFFIELD CITY COUNCIL,26604675,"222,000.00 "
Department of Health,NHS Sheffield CCG,31/03/2019,Clinical&Medical-Othe Public Sector,MENTAL HEALTH SERVICES - COLLABORATIVE COMMISSIONING,SHEFFIELD CITY COUNCIL,26604681,"882,000.00 "
Department of Health,NHS Sheffield CCG,31/03/2019,Hcare Srv Rec Fdtn Trust-Contract Baseline,MENTAL HEALTH CONTRACTS,SHEFFIELD HEALTH & SOCIAL CARE NHS FOUNDATION TRUST,26214122,"6,391,179.25 "
Department of Health,NHS Sheffield CCG,31/03/2019,Hcare Srv Rec Fdtn Trust-Non Contract,MENTAL HEALTH CONTRACTS,SHEFFIELD HEALTH & SOCIAL CARE NHS FOUNDATION TRUST,26214152,"48,720.64 "
Department of Health,NHS Sheffield CCG,31/03/2019,C&M-APMS Contract Value,PRC DELEGATED CO-COMMISSIONING,SHEFFIELD HEALTH & SOCIAL CARE NHS FOUNDATION TRUST,26383123,"125,242.82 "
Department of Health,NHS Sheffield CCG,31/03/2019,C&M-APMS DES Extended Hours Access,PRC DELEGATED CO-COMMISSIONING,SHEFFIELD HEALTH & SOCIAL CARE NHS FOUNDATION TRUST,26383123,"7,791.43 "
Department of Health,NHS Sheffield CCG,31/03/2019,C&M-APMS OOH Opt Outs,PRC DELEGATED CO-COMMISSIONING,SHEFFIELD HEALTH & SOCIAL CARE NHS FOUNDATION TRUST,26383123,5.00 
Department of Health,NHS Sheffield CCG,31/03/2019,C&M-APMS PCO Locum Adop/Pat/Mat,PRC DELEGATED CO-COMMISSIONING,SHEFFIELD HEALTH & SOCIAL CARE NHS FOUNDATION TRUST,26383123,"12,033.25 "
Department of Health,NHS Sheffield CCG,31/03/2019,C&M-APMS Prem Actual Rent,PRC DELEGATED CO-COMMISSIONING,SHEFFIELD HEALTH & SOCIAL CARE NHS FOUNDATION TRUST,26383123,"5,169.68 "
Department of Health,NHS Sheffield CCG,31/03/2019,C&M-APMS Prem Healthcentre Rent,PRC DELEGATED CO-COMMISSIONING,SHEFFIELD HEALTH & SOCIAL CARE NHS FOUNDATION TRUST,26383123,"59,021.14 "
Department of Health,NHS Sheffield CCG,31/03/2019,C&M-APMS Prem Notional Rent,PRC DELEGATED CO-COMMISSIONING,SHEFFIELD HEALTH & SOCIAL CARE NHS FOUNDATION TRUST,26383123,"2,804.17 "
Department of Health,NHS Sheffield CCG,31/03/2019,C&M-PMS Contract Value,PRC DELEGATED CO-COMMISSIONING,SHEFFIELD HEALTH & SOCIAL CARE NHS FOUNDATION TRUST,26383123,"2,915.63 "
Department of Health,NHS Sheffield CCG,31/03/2019,C&M-PMS DES Learn Dsblty Hlth Chk,PRC DELEGATED CO-COMMISSIONING,SHEFFIELD HEALTH & SOCIAL CARE NHS FOUNDATION TRUST,26383123,280.00 
Department of Health,NHS Sheffield CCG,31/03/2019,C&M-PMS Out of Hours Opt Outs,PRC DELEGATED CO-COMMISSIONING,SHEFFIELD HEALTH & SOCIAL CARE NHS FOUNDATION TRUST,26383123,107.98 
Department of Health,NHS Sheffield CCG,31/03/2019,C&M-PMS QOF Aspiration,PRC DELEGATED CO-COMMISSIONING,SHEFFIELD HEALTH & SOCIAL CARE NHS FOUNDATION TRUST,26383123,"11,714.38 "
Department of Health,NHS Sheffield CCG,31/03/2019,C&M-APMS Contract Value,PRC DELEGATED CO-COMMISSIONING,SHEFFIELD HEALTH & SOCIAL CARE NHS FOUNDATION TRUST,26383127,"27,553.52 "
Department of Health,NHS Sheffield CCG,31/03/2019,C&M-APMS DES Extended Hours Access,PRC DELEGATED CO-COMMISSIONING,SHEFFIELD HEALTH & SOCIAL CARE NHS FOUNDATION TRUST,26383127,"2,094.75 "
Department of Health,NHS Sheffield CCG,31/03/2019,C&M-APMS OOH Opt Outs,PRC DELEGATED CO-COMMISSIONING,SHEFFIELD HEALTH & SOCIAL CARE NHS FOUNDATION TRUST,26383127,8.11 
Department of Health,NHS Sheffield CCG,31/03/2019,C&M-PMS Contract Value,PRC DELEGATED CO-COMMISSIONING,SHEFFIELD HEALTH & SOCIAL CARE NHS FOUNDATION TRUST,26383127,639.51 
Department of Health,NHS Sheffield CCG,31/03/2019,C&M-PMS DES Learn Dsblty Hlth Chk,PRC DELEGATED CO-COMMISSIONING,SHEFFIELD HEALTH & SOCIAL CARE NHS FOUNDATION TRUST,26383127,140.00 
Department of Health,NHS Sheffield CCG,31/03/2019,C&M-PMS Out of Hours Opt Outs,PRC DELEGATED CO-COMMISSIONING,SHEFFIELD HEALTH & SOCIAL CARE NHS FOUNDATION TRUST,26383127,23.68 
Department of Health,NHS Sheffield CCG,31/03/2019,C&M-PMS QOF Aspiration,PRC DELEGATED CO-COMMISSIONING,SHEFFIELD HEALTH & SOCIAL CARE NHS FOUNDATION TRUST,26383127,"1,425.29 "
Department of Health,NHS Sheffield CCG,31/03/2019,Other Gen Supplies & Srv,BEREAVEMENT SERVICE,SHEFFIELD HEALTH & SOCIAL CARE NHS FOUNDATION TRUST,26392117,"98,193.00 "
Department of Health,NHS Sheffield CCG,31/03/2019,Cont Care-NHSFT-Adult 100% Funded,CHC ADULT FULLY FUNDED,SHEFFIELD HEALTH & SOCIAL CARE NHS FOUNDATION TRUST,26452338,"240,830.02 "
Department of Health,NHS Sheffield CCG,31/03/2019,Hcare Srv Rec Fdtn Trust-Contract Baseline,MENTAL HEALTH CONTRACTS,SHEFFIELD HEALTH & SOCIAL CARE NHS FOUNDATION TRUST,26653620,"(118,330.00)"
Department of Health,NHS Sheffield CCG,31/03/2019,Hcare Srv Rec Fdtn Trust-Contract Baseline,MENTAL HEALTH CONTRACTS,SHEFFIELD HEALTH & SOCIAL CARE NHS FOUNDATION TRUST,26653634,"(250,000.00)"
Department of Health,NHS Sheffield CCG,31/03/2019,Other Gen Supplies & Srv,CLINICAL LEADS,SHEFFIELD TEACHING HOSPITALS NHS FOUNDATION TRUST,26444654,"54,981.00 "
Department of Health,NHS Sheffield CCG,31/03/2019,Other Gen Supplies & Srv,CLINICAL LEADS,SHEFFIELD TEACHING HOSPITALS NHS FOUNDATION TRUST,26446078,"78,032.00 "
Department of Health,NHS Sheffield CCG,31/03/2019,Hcare Srv Rec Fdtn Trust-Contract Baseline,ACUTE COMMISSIONING,SHEFFIELD TEACHING HOSPITALS NHS FOUNDATION TRUST,26452382,"(60,624.00)"
Department of Health,NHS Sheffield CCG,31/03/2019,Other Gen Supplies & Srv,BEREAVEMENT SERVICE,SHEFFIELD TEACHING HOSPITALS NHS FOUNDATION TRUST,26505973,"903,000.00 "
Department of Health,NHS Sheffield CCG,31/03/2019,Prepymnts <1Yr-NHS Period End Accrual,ACUTE COMMISSIONING,SHEFFIELD TEACHING HOSPITALS NHS FOUNDATION TRUST,26604699,"1,280,879.00 "
Department of Health,NHS Sheffield CCG,31/03/2019,Prepymnts <1Yr-NHS Period End Accrual,ACUTE COMMISSIONING,SHEFFIELD TEACHING HOSPITALS NHS FOUNDATION TRUST,26604700,"3,905,387.00 "
Department of Health,NHS Sheffield CCG,31/03/2019,Prepymnts <1Yr-NHS Period End Accrual,ACUTE COMMISSIONING,SHEFFIELD TEACHING HOSPITALS NHS FOUNDATION TRUST,26604702,"27,862,481.00 "
Department of Health,NHS Sheffield CCG,31/03/2019,Other Gen Supplies & Srv,CLINICAL LEADS,SHEFFIELD TEACHING HOSPITALS NHS FOUNDATION TRUST,26614113,"30,000.00 "
Department of Health,NHS Sheffield CCG,31/03/2019,Miscellaneous Expenditure (L9),BEREAVEMENT SERVICE,SHEFFIELD TEACHING HOSPITALS NHS FOUNDATION TRUST,26653638,253.33 
Department of Health,NHS Sheffield CCG,31/03/2019,Seconded-Basic Sal-Staff fm oth org,BEREAVEMENT SERVICE,SHEFFIELD TEACHING HOSPITALS NHS FOUNDATION TRUST,26653638,"51,253.02 "
Department of Health,NHS Sheffield CCG,31/03/2019,Hcare Srv Rec Fdtn Trust-Non Contract,COMMISSIONING SCHEMES,SHEFFIELD TEACHING HOSPITALS NHS FOUNDATION TRUST,26664864,"29,127.00 "
Department of Health,NHS Sheffield CCG,31/03/2019,C&M-GMS Cost of Drugs -Prescribing,LOCAL ENHANCED SERVICES,SHIREGREEN MEDICAL CENTRE,26592363,"4,185.46 "
Department of Health,NHS Sheffield CCG,31/03/2019,C&M-GMS Global Sum,PRC DELEGATED CO-COMMISSIONING,SHIREGREEN MEDICAL CENTRE,26592363,"58,730.53 "
Department of Health,NHS Sheffield CCG,31/03/2019,C&M-GMS MPIG Correction Factor,PRC DELEGATED CO-COMMISSIONING,SHIREGREEN MEDICAL CENTRE,26592363,453.69 
Department of Health,NHS Sheffield CCG,31/03/2019,C&M-GMS PCO Seniority,PRC DELEGATED CO-COMMISSIONING,SHIREGREEN MEDICAL CENTRE,26592363,"1,683.53 "
Department of Health,NHS Sheffield CCG,31/03/2019,C&M-GMS Prem Cost Rent,PRC DELEGATED CO-COMMISSIONING,SHIREGREEN MEDICAL CENTRE,26592363,"1,792.33 "
Department of Health,NHS Sheffield CCG,31/03/2019,C&M-GMS Prem Notional Rent,PRC DELEGATED CO-COMMISSIONING,SHIREGREEN MEDICAL CENTRE,26592363,"5,375.00 "
Department of Health,NHS Sheffield CCG,31/03/2019,C&M-GMS Prof Fees Prescribing,PRC DELEGATED CO-COMMISSIONING,SHIREGREEN MEDICAL CENTRE,26592363,845.53 
Department of Health,NHS Sheffield CCG,31/03/2019,C&M-GMS QOF Aspiration,PRC DELEGATED CO-COMMISSIONING,SHIREGREEN MEDICAL CENTRE,26592363,"6,765.83 "
Department of Health,NHS Sheffield CCG,31/03/2019,C&M-PMS Contract Value,PRC DELEGATED CO-COMMISSIONING,SLOAN MEDICAL CENTRE,26357985,"94,466.55 "
Department of Health,NHS Sheffield CCG,31/03/2019,C&M-PMS DES Extended Hours Access,PRC DELEGATED CO-COMMISSIONING,SLOAN MEDICAL CENTRE,26357985,"6,155.05 "
Department of Health,NHS Sheffield CCG,31/03/2019,C&M-PMS PCO Seniority,PRC DELEGATED CO-COMMISSIONING,SLOAN MEDICAL CENTRE,26357985,"4,680.07 "
Department of Health,NHS Sheffield CCG,31/03/2019,C&M-PMS Prem Actual Rent,PRC DELEGATED CO-COMMISSIONING,SLOAN MEDICAL CENTRE,26357985,"15,535.83 "
Department of Health,NHS Sheffield CCG,31/03/2019,C&M-PMS Prem Notional Rent,PRC DELEGATED CO-COMMISSIONING,SLOAN MEDICAL CENTRE,26357985,608.33 
Department of Health,NHS Sheffield CCG,31/03/2019,C&M-PMS Prem Water Rates,PRC DELEGATED CO-COMMISSIONING,SLOAN MEDICAL CENTRE,26357985,71.58 
Department of Health,NHS Sheffield CCG,31/03/2019,C&M-PMS QOF Aspiration,PRC DELEGATED CO-COMMISSIONING,SLOAN MEDICAL CENTRE,26357985,"9,952.56 "
Department of Health,NHS Sheffield CCG,31/03/2019,C&M-PMS Contract Value,PRC DELEGATED CO-COMMISSIONING,SOTHALL MEDICAL CENTRE,26357987,"71,233.54 "
Department of Health,NHS Sheffield CCG,31/03/2019,C&M-PMS DES Extended Hours Access,PRC DELEGATED CO-COMMISSIONING,SOTHALL MEDICAL CENTRE,26357987,"4,835.50 "
Department of Health,NHS Sheffield CCG,31/03/2019,C&M-PMS Out of Hours Opt Outs,PRC DELEGATED CO-COMMISSIONING,SOTHALL MEDICAL CENTRE,26357987,25.34 
Department of Health,NHS Sheffield CCG,31/03/2019,C&M-PMS PCO Other,PRC DELEGATED CO-COMMISSIONING,SOTHALL MEDICAL CENTRE,26357987,701.88 
Department of Health,NHS Sheffield CCG,31/03/2019,C&M-PMS PCO Seniority,PRC DELEGATED CO-COMMISSIONING,SOTHALL MEDICAL CENTRE,26357987,"4,173.49 "
Department of Health,NHS Sheffield CCG,31/03/2019,C&M-PMS Prem Notional Rent,PRC DELEGATED CO-COMMISSIONING,SOTHALL MEDICAL CENTRE,26357987,"5,116.67 "
Department of Health,NHS Sheffield CCG,31/03/2019,C&M-PMS Prem Water Rates,PRC DELEGATED CO-COMMISSIONING,SOTHALL MEDICAL CENTRE,26357987,251.44 
Department of Health,NHS Sheffield CCG,31/03/2019,C&M-PMS QOF Aspiration,PRC DELEGATED CO-COMMISSIONING,SOTHALL MEDICAL CENTRE,26357987,"8,691.35 "
Department of Health,NHS Sheffield CCG,31/03/2019,Clinical&Medical-Independent Sector,MENTAL HEALTH CONTRACTS,SOUTH YORKSHIRE HOUSING ASSOCIATION LTD,26313758,"34,435.00 "
Department of Health,NHS Sheffield CCG,31/03/2019,Cont Care- Adult 100% Fully Funded,CHC ADULT FULLY FUNDED,SOUTH YORKSHIRE HOUSING ASSOCIATION LTD,26313768,"25,500.00 "
Department of Health,NHS Sheffield CCG,31/03/2019,Cont Care-Physical Disab (<65),CHC ADULT FULLY FUNDED,SOUTH YORKSHIRE HOUSING ASSOCIATION LTD,26313926,"106,396.86 "
Department of Health,NHS Sheffield CCG,31/03/2019,Clinical&Medical-Voluntary Sector,COLLABORATIVE COMMISSIONING,SOUTH YORKSHIRE HOUSING ASSOCIATION LTD,26452332,"91,605.00 "
Department of Health,NHS Sheffield CCG,31/03/2019,Clinical&Medical-Voluntary Sector,COLLABORATIVE COMMISSIONING,SOUTH YORKSHIRE HOUSING ASSOCIATION LTD,26452334,"74,600.00 "
Department of Health,NHS Sheffield CCG,31/03/2019,C&M-PMS Contract Value,PRC DELEGATED CO-COMMISSIONING,SOUTHEY GREEN MEDICAL CENTRE,26357989,"26,388.53 "
Department of Health,NHS Sheffield CCG,31/03/2019,C&M-PMS DES Extended Hours Access,PRC DELEGATED CO-COMMISSIONING,SOUTHEY GREEN MEDICAL CENTRE,26357989,"1,423.10 "
Department of Health,NHS Sheffield CCG,31/03/2019,C&M-PMS DES Learn Dsblty Hlth Chk,PRC DELEGATED CO-COMMISSIONING,SOUTHEY GREEN MEDICAL CENTRE,26357989,420.00 
Department of Health,NHS Sheffield CCG,31/03/2019,C&M-PMS Out of Hours Opt Outs,PRC DELEGATED CO-COMMISSIONING,SOUTHEY GREEN MEDICAL CENTRE,26357989,68.24 
Department of Health,NHS Sheffield CCG,31/03/2019,C&M-PMS PCO Seniority,PRC DELEGATED CO-COMMISSIONING,SOUTHEY GREEN MEDICAL CENTRE,26357989,"1,053.32 "
Department of Health,NHS Sheffield CCG,31/03/2019,C&M-PMS Prem Notional Rent,PRC DELEGATED CO-COMMISSIONING,SOUTHEY GREEN MEDICAL CENTRE,26357989,"3,362.50 "
Department of Health,NHS Sheffield CCG,31/03/2019,C&M-PMS QOF Aspiration,PRC DELEGATED CO-COMMISSIONING,SOUTHEY GREEN MEDICAL CENTRE,26357989,"2,539.36 "
Department of Health,NHS Sheffield CCG,31/03/2019,Clinical&Medical-Independent Sector,NCAS/OATS,SPAMEDICA LTD,26288253,"81,102.34 "
Department of Health,NHS Sheffield CCG,31/03/2019,Clinical&Medical-Independent Sector,NCAS/OATS,SPAMEDICA LTD,26604668,"79,536.36 "
Department of Health,NHS Sheffield CCG,31/03/2019,C&M-GMS Cost of Drugs -Prescribing,LOCAL ENHANCED SERVICES,STANNINGTON MEDICAL CENTRE,26617995,43.72 
Department of Health,NHS Sheffield CCG,31/03/2019,C&M-GMS Global Sum,PRC DELEGATED CO-COMMISSIONING,STANNINGTON MEDICAL CENTRE,26617995,"24,884.90 "
Department of Health,NHS Sheffield CCG,31/03/2019,C&M-GMS PCO Seniority,PRC DELEGATED CO-COMMISSIONING,STANNINGTON MEDICAL CENTRE,26617995,"1,230.08 "
Department of Health,NHS Sheffield CCG,31/03/2019,C&M-GMS Prem Notional Rent,PRC DELEGATED CO-COMMISSIONING,STANNINGTON MEDICAL CENTRE,26617995,"2,575.00 "
Department of Health,NHS Sheffield CCG,31/03/2019,C&M-GMS Prof Fees Prescribing,PRC DELEGATED CO-COMMISSIONING,STANNINGTON MEDICAL CENTRE,26617995,28.27 
Department of Health,NHS Sheffield CCG,31/03/2019,C&M-GMS QOF Aspiration,PRC DELEGATED CO-COMMISSIONING,STANNINGTON MEDICAL CENTRE,26617995,"2,850.04 "
Department of Health,NHS Sheffield CCG,31/03/2019,C&M-GMS Cost of Drugs -Prescribing,LOCAL ENHANCED SERVICES,STONECROFT MEDICAL CENTRE,26592365,"1,291.82 "
Department of Health,NHS Sheffield CCG,31/03/2019,C&M-GMS Global Sum,PRC DELEGATED CO-COMMISSIONING,STONECROFT MEDICAL CENTRE,26592365,"31,680.53 "
Department of Health,NHS Sheffield CCG,31/03/2019,C&M-GMS MPIG Correction Factor,PRC DELEGATED CO-COMMISSIONING,STONECROFT MEDICAL CENTRE,26592365,618.25 
Department of Health,NHS Sheffield CCG,31/03/2019,C&M-GMS PCO Seniority,PRC DELEGATED CO-COMMISSIONING,STONECROFT MEDICAL CENTRE,26592365,"1,916.89 "
Department of Health,NHS Sheffield CCG,31/03/2019,C&M-GMS Prem Notional Rent,PRC DELEGATED CO-COMMISSIONING,STONECROFT MEDICAL CENTRE,26592365,"2,808.33 "
Department of Health,NHS Sheffield CCG,31/03/2019,C&M-GMS Prof Fees Prescribing,PRC DELEGATED CO-COMMISSIONING,STONECROFT MEDICAL CENTRE,26592365,133.64 
Department of Health,NHS Sheffield CCG,31/03/2019,C&M-GMS QOF Aspiration,PRC DELEGATED CO-COMMISSIONING,STONECROFT MEDICAL CENTRE,26592365,"4,160.47 "
Department of Health,NHS Sheffield CCG,31/03/2019,Cont Care-Physical Disab (<65),CHC ADULT FULLY FUNDED,SUSASH GB LTD T/A EAGLE HOUSE,26288883,"28,943.85 "
Department of Health,NHS Sheffield CCG,31/03/2019,Clinical&Medical-Independent Sector,MENTAL HEALTH CONTRACTS,SUSASH GB LTD T/A EAGLE HOUSE,26313860,"30,092.00 "
Department of Health,NHS Sheffield CCG,31/03/2019,C&M-GMS Global Sum,PRC DELEGATED CO-COMMISSIONING,TOTLEY RISE MEDICAL CENTRE,26592368,"24,336.38 "
Department of Health,NHS Sheffield CCG,31/03/2019,C&M-GMS MPIG Correction Factor,PRC DELEGATED CO-COMMISSIONING,TOTLEY RISE MEDICAL CENTRE,26592368,103.13 
Department of Health,NHS Sheffield CCG,31/03/2019,C&M-GMS PCO Seniority,PRC DELEGATED CO-COMMISSIONING,TOTLEY RISE MEDICAL CENTRE,26592368,"1,534.18 "
Department of Health,NHS Sheffield CCG,31/03/2019,C&M-GMS Prem Notional Rent,PRC DELEGATED CO-COMMISSIONING,TOTLEY RISE MEDICAL CENTRE,26592368,"1,491.67 "
Department of Health,NHS Sheffield CCG,31/03/2019,C&M-GMS QOF Aspiration,PRC DELEGATED CO-COMMISSIONING,TOTLEY RISE MEDICAL CENTRE,26592368,"1,881.75 "
Department of Health,NHS Sheffield CCG,31/03/2019,C&M-GMS Cost of Drugs -Prescribing,LOCAL ENHANCED SERVICES,TRAMWAYS MEDICAL CENTRE,26592370,"2,988.42 "
Department of Health,NHS Sheffield CCG,31/03/2019,C&M-GMS Global Sum,PRC DELEGATED CO-COMMISSIONING,TRAMWAYS MEDICAL CENTRE,26592370,"60,811.03 "
Department of Health,NHS Sheffield CCG,31/03/2019,C&M-GMS PCO Seniority,PRC DELEGATED CO-COMMISSIONING,TRAMWAYS MEDICAL CENTRE,26592370,"5,083.40 "
Department of Health,NHS Sheffield CCG,31/03/2019,C&M-GMS Prem Cost Rent,PRC DELEGATED CO-COMMISSIONING,TRAMWAYS MEDICAL CENTRE,26592370,"4,012.75 "
Department of Health,NHS Sheffield CCG,31/03/2019,C&M-GMS Prof Fees Prescribing,PRC DELEGATED CO-COMMISSIONING,TRAMWAYS MEDICAL CENTRE,26592370,370.08 
Department of Health,NHS Sheffield CCG,31/03/2019,C&M-GMS QOF Aspiration,PRC DELEGATED CO-COMMISSIONING,TRAMWAYS MEDICAL CENTRE,26592370,"5,780.50 "
Department of Health,NHS Sheffield CCG,31/03/2019,Cont Care-Funded Nursing Care Allow,FUNDED NURSING CARE,ULTIMA CARE CENTRES (NO1) LTD,26288807,"37,461.20 "
Department of Health,NHS Sheffield CCG,31/03/2019,C&M-PMS Contract Value,PRC DELEGATED CO-COMMISSIONING,UNIVERSITY HEALTH SERVICE,26357992,"(13,659.82)"
Department of Health,NHS Sheffield CCG,31/03/2019,C&M-PMS GP Statutory Levy,PRC DELEGATED CO-COMMISSIONING,UNIVERSITY HEALTH SERVICE,26357992,"(2,247.42)"
Department of Health,NHS Sheffield CCG,31/03/2019,C&M-PMS Out of Hours Opt Outs,PRC DELEGATED CO-COMMISSIONING,UNIVERSITY HEALTH SERVICE,26357992,"(9,365.01)"
Department of Health,NHS Sheffield CCG,31/03/2019,C&M-PMS Voluntary Levy,PRC DELEGATED CO-COMMISSIONING,UNIVERSITY HEALTH SERVICE,26357992,(374.58)
Department of Health,NHS Sheffield CCG,31/03/2019,C&M-PMS Contract Value,PRC DELEGATED CO-COMMISSIONING,UNIVERSITY HEALTH SERVICE,26357993,"192,415.94 "
Department of Health,NHS Sheffield CCG,31/03/2019,C&M-PMS Out of Hours Opt Outs,PRC DELEGATED CO-COMMISSIONING,UNIVERSITY HEALTH SERVICE,26357993,671.73 
Department of Health,NHS Sheffield CCG,31/03/2019,C&M-PMS PCO Locum Adop/Pat/Mat,PRC DELEGATED CO-COMMISSIONING,UNIVERSITY HEALTH SERVICE,26357993,"5,589.26 "
Department of Health,NHS Sheffield CCG,31/03/2019,C&M-PMS PCO Seniority,PRC DELEGATED CO-COMMISSIONING,UNIVERSITY HEALTH SERVICE,26357993,"4,787.10 "
Department of Health,NHS Sheffield CCG,31/03/2019,C&M-PMS Prem Notional Rent,PRC DELEGATED CO-COMMISSIONING,UNIVERSITY HEALTH SERVICE,26357993,"15,833.33 "
Department of Health,NHS Sheffield CCG,31/03/2019,C&M-PMS QOF Aspiration,PRC DELEGATED CO-COMMISSIONING,UNIVERSITY HEALTH SERVICE,26357993,"3,984.72 "
Department of Health,NHS Sheffield CCG,31/03/2019,C&M-GMS Cost of Drugs -Prescribing,LOCAL ENHANCED SERVICES,UPPERTHORPE MEDICAL CENTRE,26592373,"4,479.27 "
Department of Health,NHS Sheffield CCG,31/03/2019,C&M-GMS DES Extended Hours Access,PRC DELEGATED CO-COMMISSIONING,UPPERTHORPE MEDICAL CENTRE,26592373,"5,447.78 "
Department of Health,NHS Sheffield CCG,31/03/2019,C&M-GMS Global Sum,PRC DELEGATED CO-COMMISSIONING,UPPERTHORPE MEDICAL CENTRE,26592373,"81,133.18 "
Department of Health,NHS Sheffield CCG,31/03/2019,C&M-GMS MPIG Correction Factor,PRC DELEGATED CO-COMMISSIONING,UPPERTHORPE MEDICAL CENTRE,26592373,"1,325.74 "
Department of Health,NHS Sheffield CCG,31/03/2019,C&M-GMS PCO Seniority,PRC DELEGATED CO-COMMISSIONING,UPPERTHORPE MEDICAL CENTRE,26592373,"3,003.54 "
Department of Health,NHS Sheffield CCG,31/03/2019,C&M-GMS Prem Actual Rent,PRC DELEGATED CO-COMMISSIONING,UPPERTHORPE MEDICAL CENTRE,26592373,"29,475.00 "
Department of Health,NHS Sheffield CCG,31/03/2019,C&M-GMS Prem Notional Rent,PRC DELEGATED CO-COMMISSIONING,UPPERTHORPE MEDICAL CENTRE,26592373,"2,497.83 "
Department of Health,NHS Sheffield CCG,31/03/2019,C&M-GMS Prof Fees Prescribing,PRC DELEGATED CO-COMMISSIONING,UPPERTHORPE MEDICAL CENTRE,26592373,526.85 
Department of Health,NHS Sheffield CCG,31/03/2019,C&M-GMS QOF Aspiration,PRC DELEGATED CO-COMMISSIONING,UPPERTHORPE MEDICAL CENTRE,26592373,"8,681.64 "
Department of Health,NHS Sheffield CCG,31/03/2019,C&M-PMS Contract Value,PRC DELEGATED CO-COMMISSIONING,UPWELL STREET SURGERY,26357995,"37,865.17 "
Department of Health,NHS Sheffield CCG,31/03/2019,C&M-PMS Out of Hours Opt Outs,PRC DELEGATED CO-COMMISSIONING,UPWELL STREET SURGERY,26357995,17.00 
Department of Health,NHS Sheffield CCG,31/03/2019,C&M-PMS PCO Seniority,PRC DELEGATED CO-COMMISSIONING,UPWELL STREET SURGERY,26357995,"2,065.26 "
Department of Health,NHS Sheffield CCG,31/03/2019,C&M-PMS Prem Notional Rent,PRC DELEGATED CO-COMMISSIONING,UPWELL STREET SURGERY,26357995,"8,137.50 "
Department of Health,NHS Sheffield CCG,31/03/2019,C&M-PMS Prem Rates,PRC DELEGATED CO-COMMISSIONING,UPWELL STREET SURGERY,26357995,"1,265.00 "
Department of Health,NHS Sheffield CCG,31/03/2019,C&M-PMS Prem Water Rates,PRC DELEGATED CO-COMMISSIONING,UPWELL STREET SURGERY,26357995,144.96 
Department of Health,NHS Sheffield CCG,31/03/2019,C&M-PMS QOF Aspiration,PRC DELEGATED CO-COMMISSIONING,UPWELL STREET SURGERY,26357995,"4,294.99 "
Department of Health,NHS Sheffield CCG,31/03/2019,C&M-PMS Contract Value,PRC DELEGATED CO-COMMISSIONING,VALLEY MEDICAL CENTRE,26357997,"78,213.19 "
Department of Health,NHS Sheffield CCG,31/03/2019,C&M-PMS Out of Hours Opt Outs,PRC DELEGATED CO-COMMISSIONING,VALLEY MEDICAL CENTRE,26357997,7.70 
Department of Health,NHS Sheffield CCG,31/03/2019,C&M-PMS PCO Locum Adop/Pat/Mat,PRC DELEGATED CO-COMMISSIONING,VALLEY MEDICAL CENTRE,26357997,"9,973.60 "
Department of Health,NHS Sheffield CCG,31/03/2019,C&M-PMS PCO Seniority,PRC DELEGATED CO-COMMISSIONING,VALLEY MEDICAL CENTRE,26357997,"5,749.17 "
Department of Health,NHS Sheffield CCG,31/03/2019,C&M-PMS Prem Actual Rent,PRC DELEGATED CO-COMMISSIONING,VALLEY MEDICAL CENTRE,26357997,"25,468.75 "
Department of Health,NHS Sheffield CCG,31/03/2019,C&M-PMS Prem Rates,PRC DELEGATED CO-COMMISSIONING,VALLEY MEDICAL CENTRE,26357997,330.21 
Department of Health,NHS Sheffield CCG,31/03/2019,C&M-PMS QOF Aspiration,PRC DELEGATED CO-COMMISSIONING,VALLEY MEDICAL CENTRE,26357997,"8,516.48 "
Department of Health,NHS Sheffield CCG,31/03/2019,C&M-GMS Cost of Drugs -Prescribing,LOCAL ENHANCED SERVICES,WALKLEY HOUSE MEDICAL CENTRE,26592378,"1,785.19 "
Department of Health,NHS Sheffield CCG,31/03/2019,C&M-GMS Global Sum,PRC DELEGATED CO-COMMISSIONING,WALKLEY HOUSE MEDICAL CENTRE,26592378,"84,194.56 "
Department of Health,NHS Sheffield CCG,31/03/2019,C&M-GMS PCO Seniority,PRC DELEGATED CO-COMMISSIONING,WALKLEY HOUSE MEDICAL CENTRE,26592378,"2,077.56 "
Department of Health,NHS Sheffield CCG,31/03/2019,C&M-GMS Prem Notional Rent,PRC DELEGATED CO-COMMISSIONING,WALKLEY HOUSE MEDICAL CENTRE,26592378,"5,635.50 "
Department of Health,NHS Sheffield CCG,31/03/2019,C&M-GMS Prof Fees Prescribing,PRC DELEGATED CO-COMMISSIONING,WALKLEY HOUSE MEDICAL CENTRE,26592378,323.82 
Department of Health,NHS Sheffield CCG,31/03/2019,C&M-GMS QOF Aspiration,PRC DELEGATED CO-COMMISSIONING,WALKLEY HOUSE MEDICAL CENTRE,26592378,"8,592.68 "
Department of Health,NHS Sheffield CCG,31/03/2019,C&M-GMS DES Extended Hours Access,PRC DELEGATED CO-COMMISSIONING,WHITE HOUSE SURGERY SHEFFIELD,26592376,"3,021.48 "
Department of Health,NHS Sheffield CCG,31/03/2019,C&M-GMS Global Sum,PRC DELEGATED CO-COMMISSIONING,WHITE HOUSE SURGERY SHEFFIELD,26592376,"50,317.55 "
Department of Health,NHS Sheffield CCG,31/03/2019,C&M-GMS MPIG Correction Factor,PRC DELEGATED CO-COMMISSIONING,WHITE HOUSE SURGERY SHEFFIELD,26592376,"1,391.30 "
Department of Health,NHS Sheffield CCG,31/03/2019,C&M-GMS PCO Seniority,PRC DELEGATED CO-COMMISSIONING,WHITE HOUSE SURGERY SHEFFIELD,26592376,"2,263.71 "
Department of Health,NHS Sheffield CCG,31/03/2019,C&M-GMS Prem Notional Rent,PRC DELEGATED CO-COMMISSIONING,WHITE HOUSE SURGERY SHEFFIELD,26592376,"21,311.68 "
Department of Health,NHS Sheffield CCG,31/03/2019,C&M-GMS QOF Aspiration,PRC DELEGATED CO-COMMISSIONING,WHITE HOUSE SURGERY SHEFFIELD,26592376,"6,017.46 "
Department of Health,NHS Sheffield CCG,31/03/2019,Cont Care-Physical Disab (<65),CHC ADULT FULLY FUNDED,WILLOWBECK HEALTH CARE LTD,26313981,"117,881.46 "
Department of Health,NHS Sheffield CCG,31/03/2019,C&M-PMS Contract Value,PRC DELEGATED CO-COMMISSIONING,WINCOBANK MEDICAL CENTRE,26358001,"62,037.97 "
Department of Health,NHS Sheffield CCG,31/03/2019,C&M-PMS DES Extended Hours Access,PRC DELEGATED CO-COMMISSIONING,WINCOBANK MEDICAL CENTRE,26358001,"3,636.13 "
Department of Health,NHS Sheffield CCG,31/03/2019,C&M-PMS Out of Hours Opt Outs,PRC DELEGATED CO-COMMISSIONING,WINCOBANK MEDICAL CENTRE,26358001,19.67 
Department of Health,NHS Sheffield CCG,31/03/2019,C&M-PMS PCO Seniority,PRC DELEGATED CO-COMMISSIONING,WINCOBANK MEDICAL CENTRE,26358001,"1,997.10 "
Department of Health,NHS Sheffield CCG,31/03/2019,C&M-PMS Prem Healthcentre Rent,PRC DELEGATED CO-COMMISSIONING,WINCOBANK MEDICAL CENTRE,26358001,"44,024.50 "
Department of Health,NHS Sheffield CCG,31/03/2019,C&M-PMS QOF Aspiration,PRC DELEGATED CO-COMMISSIONING,WINCOBANK MEDICAL CENTRE,26358001,"6,309.99 "
Department of Health,NHS Sheffield CCG,31/03/2019,C&M-PMS Practice Transformational Support,LOCAL ENHANCED SERVICES,WOODHOUSE HEALTH CENTRE,26274594,"150,000.00 "
Department of Health,NHS Sheffield CCG,31/03/2019,C&M-PMS Contract Value,PRC DELEGATED CO-COMMISSIONING,WOODHOUSE HEALTH CENTRE,26357999,"100,779.71 "
Department of Health,NHS Sheffield CCG,31/03/2019,C&M-PMS DES Extended Hours Access,PRC DELEGATED CO-COMMISSIONING,WOODHOUSE HEALTH CENTRE,26357999,"5,783.60 "
Department of Health,NHS Sheffield CCG,31/03/2019,C&M-PMS Out of Hours Opt Outs,PRC DELEGATED CO-COMMISSIONING,WOODHOUSE HEALTH CENTRE,26357999,44.41 
Department of Health,NHS Sheffield CCG,31/03/2019,C&M-PMS PCO Seniority,PRC DELEGATED CO-COMMISSIONING,WOODHOUSE HEALTH CENTRE,26357999,"6,372.72 "
Department of Health,NHS Sheffield CCG,31/03/2019,C&M-PMS Prem Notional Rent,PRC DELEGATED CO-COMMISSIONING,WOODHOUSE HEALTH CENTRE,26357999,"6,338.58 "
Department of Health,NHS Sheffield CCG,31/03/2019,C&M-PMS QOF Aspiration,PRC DELEGATED CO-COMMISSIONING,WOODHOUSE HEALTH CENTRE,26357999,"13,695.89 "
Department of Health,NHS Sheffield CCG,31/03/2019,C&M-PMS Contract Value,PRC DELEGATED CO-COMMISSIONING,WOODSEATS MEDICAL CENTRE,26383126,"74,797.23 "
Department of Health,NHS Sheffield CCG,31/03/2019,C&M-PMS DES Extended Hours Access,PRC DELEGATED CO-COMMISSIONING,WOODSEATS MEDICAL CENTRE,26383126,"4,581.85 "
Department of Health,NHS Sheffield CCG,31/03/2019,C&M-PMS PCO Locum Adop/Pat/Mat,PRC DELEGATED CO-COMMISSIONING,WOODSEATS MEDICAL CENTRE,26383126,"1,608.00 "
Department of Health,NHS Sheffield CCG,31/03/2019,C&M-PMS PCO Seniority,PRC DELEGATED CO-COMMISSIONING,WOODSEATS MEDICAL CENTRE,26383126,"1,890.18 "
Department of Health,NHS Sheffield CCG,31/03/2019,C&M-PMS Prem Notional Rent,PRC DELEGATED CO-COMMISSIONING,WOODSEATS MEDICAL CENTRE,26383126,"11,666.67 "
Department of Health,NHS Sheffield CCG,31/03/2019,C&M-PMS Prem Water Rates,PRC DELEGATED CO-COMMISSIONING,WOODSEATS MEDICAL CENTRE,26383126,316.29 
Department of Health,NHS Sheffield CCG,31/03/2019,C&M-PMS QOF Aspiration,PRC DELEGATED CO-COMMISSIONING,WOODSEATS MEDICAL CENTRE,26383126,"7,979.47 "
Department of Health,NHS Sheffield CCG,31/03/2019,Hcare Srv Rec NHS Trust-Contract Baseline,AMBULANCE SERVICES,YORKSHIRE AMBULANCE SERVICE NHS TRUST,26274383,"1,509,029.00 "
Department of Health,NHS Sheffield CCG,31/03/2019,Hcare Srv Rec NHS Trust-Contract Baseline,AMBULANCE SERVICES,YORKSHIRE AMBULANCE SERVICE NHS TRUST,26274385,"124,103.00 "
Department of Health,NHS Sheffield CCG,31/03/2019,Hcare Srv Rec NHS Trust-Contract Baseline,NHS 111,YORKSHIRE AMBULANCE SERVICE NHS TRUST,26274389,"114,923.00 "
Department of Health,NHS Sheffield CCG,31/03/2019,Hcare Srv Rec NHS Trust-CQUIN,AMBULANCE SERVICES,YORKSHIRE AMBULANCE SERVICE NHS TRUST,26274394,"34,499.00 "
Department of Health,NHS Sheffield CCG,31/03/2019,Hcare Srv Rec NHS Trust-Contract Baseline,PATIENT TRANSPORT,YORKSHIRE AMBULANCE SERVICE NHS TRUST,26274402,"245,019.60 "
Department of Health,NHS Sheffield CCG,31/03/2019,Hcare Srv Rec NHS Trust-Contract Baseline,PATIENT TRANSPORT,YORKSHIRE AMBULANCE SERVICE NHS TRUST,26604745,"26,699.97 "
